Cogmind - Beta 17.1 @@@ ROGUE MODE // 2026.08.30 @ 03:06:57 Player: KURIIRI Result: Destroyed by Executioner with Helical Railgun Performance ------------- Evolutions (8) 4000 Regions Visited (29) 5800 Robots Destroyed (602) 3010 Value Destroyed (30295) 30295 Prototype IDs (140) 2800 Alien Tech Used (3) 600 Bonus (21559) 21559 TOTAL SCORE: 68064 Bonus ------- Triggered High Security 500 High Alert Combat Kills 12557 Follower Combat Kills 2297 Hunted by Unchained 1000 Network Hubs Disabled 800 Registered with UFD 300 Met Optimus in HQ 500 Met Data Miner 300 Met Warlord at Base 500 MAIN.C Attacked Warlord 500 Warlord Defense Kills 2130 Built Enhanced Grunts 300 A7 Reached Mainframe 300 Met R17 at Cetus 500 Found Hidden Lab 3000 Met Optimus at Protoforge 1000 Friendly Fire -4925 Cogmind --------- Core Integrity 0/1450 Matter 284/300 Energy 486/495 System Corruption 4% Temperature Cool (0) Movement Rolling (90) Ox2 Location -2/Protoforge Parts ------- > --- POWER (3) -------- Neutrino Core Light Quantum Reactor Light Quantum Reactor > --- PROPULSION (7) --- Overtuned Medium Treads Overtuned Huge Scrapsphere Overtuned Huge Scrapsphere Overtuned Huge Scrapsphere > --- UTILITY (13) ----- 0bPrime Scrap Suit Experimental Optical Array Advanced Phase Shifter Experimental Weapon Shielding Heavy Armor Plating Makeshift Heavy Armor Plating Makeshift Heavy Armor Plating Centrium Light Armor Plating Insulated Plating > --- WEAPON (2) ------- Smartbomb Launcher > --- INVENTORY (5) ---- Concept NT7 Matterbank (750) Helical Railgun Helical Railgun Overtuned Linear Accelerator Peak State ------------ > --- POWER ------------ Light Antimatter Reactor Graviton Reactor Improved Quantum Reactor > --- PROPULSION ------- Improved Antigrav System Improved Antigrav System Improved Antigrav System Combat Antigrav System Antigrav Array Combat Linear Gravjet > --- UTILITY ---------- Large Storage Unit Experimental Optical Array Advanced Sensor Array Advanced Signal Interpreter Experimental Targeting Computer Experimental Targeting Computer Experimental Target Analyzer Experimental Core Analyzer Experimental Core Analyzer Experimental Armor Integrity Analyzer Experimental Kinecellerator Experimental Weapon Shielding Centrium Medium Armor Plating > --- WEAPON ----------- Concept XC Strikerail Concept XC Strikerail > --- INVENTORY -------- Advanced Heat Sink Matter Compressor Advanced Transmission Jammer Centrium Medium Armor Plating Centrium Medium Armor Plating Enhanced Gamma Rifle Core Cannon Concept XC Strikerail Smartbomb Launcher [Rating: 211] Favorites ----------- Power Light Quantum Reactor Engine Ion Engine Power Core Light Nuclear Core Reactor Light Quantum Reactor Propulsion Cooled Antigrav System Treads Light Treads Leg Experimental VSS Leg Wheel Overtuned Huge Scrapsphere Hover Unit Cooled Antigrav System Flight Unit Electron Diverter Utility Advanced Targeting Computer Device Improved Weapon Cycler Storage Large Storage Unit Processor Advanced Targeting Computer Hackware Improved Hacking Suite Protection Makeshift Heavy Armor Plating Weapon Tri-rail Accelerator Energy Gun Heavy Laser Energy Cannon Subdweller Beam Cannon Ballistic Gun Assault Rifle Ballistic Cannon Tri-rail Accelerator Launcher Smartbomb Launcher Special Weapon Multitool Impact Weapon Flail Slashing Weapon Makeshift Axe Piercing Weapon Makeshift Spear Special Melee Weapon Improved Datajack Build | -11 -10 -10 -8 -8 -6 -6 -6 -6 -6 -6 -5 -5 -5 -5 -5 -4 -4 -4 -4 -4 -4 -4 -4 -3 -3 -3 -2 -2 -2 ------- Run | Yrd Mat Sub Rec Scr Fac Was Fac Low Low Dat Pro Fac Upp Upp War Pro Fac Was Fac Ext Cet Arc Hub Res Arm Lab Res Qua Frg Slots Evolved 16 | . . . . . 8 . . . . . . 2 . . . . 2 . . . . . . 2 . . 2 . . Power . | . . . . . . . . . . . . . . . . . . . . . . . . . . . . . . Propulsion 5 | . . . . . 2 . . . . . . 1 . . . . . . . . . . . 1 . . 1 . . Utility 11 | . . . . . 6 . . . . . . 1 . . . . 2 . . . . . . 1 . . 1 . . Weapon . | . . . . . . . . . . . . . . . . . . . . . . . . . . . . . . Parts Attached 262 | 3 2 14 1 6 11 1 27 4 3 1 8 16 3 4 13 1 7 2 7 7 . 4 3 17 5 3 10 4 75 Power 30 | . 1 . . 1 . . 1 . . . 1 2 1 . 1 . 1 . 2 3 . 1 1 1 . . 4 1 8 Engine 5 | . 1 . . 1 . . . . . . . . . . . . . . 1 . . 1 . . . . 1 . . Core 8 | . . . . . . . 1 . . . 1 2 1 . . . . . 1 1 . . . . . . . . 1 Reactor 17 | . . . . . . . . . . . . . . . 1 . 1 . . 2 . . 1 1 . . 3 1 7 Propulsion 56 | 2 1 2 . 1 4 1 7 . . . . 5 . . 5 . 1 . 2 3 . . 1 5 1 . 1 1 13 Treads 6 | 2 1 2 . . . . . . . . . . . . . . . . . . . . . . . . . . 1 Leg 2 | . . . . . . . . . . . . . . . . . . . . . . . . . . . . . 2 Wheel 4 | . . . . 1 . . . . . . . . . . . . . . . . . . . . . . . . 3 Hover 40 | . . . . . 4 1 7 . . . . 4 . . 3 . 1 . 2 3 . . 1 5 1 . 1 1 6 Flight 4 | . . . . . . . . . . . . 1 . . 2 . . . . . . . . . . . . . 1 Utility 120 | 1 . 3 . 3 5 . 15 3 3 . 2 7 . 3 4 1 5 1 3 1 . 2 1 6 3 1 4 1 42 Device 40 | 1 . . . . 1 . 5 1 1 . . 4 . 2 3 . 2 . 1 1 . 2 . 4 1 . 3 1 7 Storage 7 | . . . . 2 . . 1 . 1 . . . . . . . 1 . 1 . . . . . . . . . 1 Processor 36 | . . . . . 2 . 3 1 1 . . 3 . . 1 1 . 1 1 . . . . . 1 . 1 . 20 Hackware 11 | . . . . 1 2 . 3 . . . . . . 1 . . 2 . . . . . 1 . . . . . 1 Protection 26 | . . 3 . . . . 3 1 . . 2 . . . . . . . . . . . . 2 1 1 . . 13 Artifact . | . . . . . . . . . . . . . . . . . . . . . . . . . . . . . . Weapon 56 | . . 9 1 1 2 . 4 1 . 1 5 2 2 1 3 . . 1 . . . 1 . 5 1 2 1 1 12 Energy Gun 7 | . . . . . . . . . . . 1 . . . 2 . . . . . . . . . . 2 1 . 1 Energy Cannon 12 | . . 5 . . 1 . 2 . . . 1 1 . . . . . . . . . . . 1 . . . 1 . Ballistic Gun 15 | . . 4 . . . . . . . . 2 . . . . . . . . . . 1 . 1 . . . . 7 Ballistic Cannon 9 | . . . . . . . 2 1 . . . . . . . . . . . . . . . 1 1 . . . 4 Launcher 4 | . . . . . 1 . . . . . . . 1 . . . . 1 . . . . . 1 . . . . . Special Weapon 3 | . . . 1 . . . . . . . . . 1 . 1 . . . . . . . . . . . . . . Impact Weapon 2 | . . . . 1 . . . . . . . 1 . . . . . . . . . . . . . . . . . Slashing Weapon 1 | . . . . . . . . . . . . . . 1 . . . . . . . . . . . . . . . Piercing Weapon 1 | . . . . . . . . . . . 1 . . . . . . . . . . . . . . . . . . Special Melee Weapon 2 | . . . . . . . . . . 1 . . . . . . . . . . . . . 1 . . . . . Unidentified Prototypes 38 | . . . . . . . 1 1 . . . 1 1 . 8 . 1 2 . . . . . 5 . 4 1 1 12 Parts Lost 54 | . . . . . . . 2 . 2 . 3 4 . 2 . . . . 4 2 . . 1 1 1 . 2 . 30 Power 9 | . . . . . . . . . . . 1 . . . . . . . 2 1 . . . . . . 1 . 4 Propulsion 17 | . . . . . . . . . . . . 3 . 2 . . . . 2 1 . . 1 . . . . . 8 Utility 25 | . . . . . . . 2 . 2 . . 1 . . . . . . . . . . . 1 1 . 1 . 17 Weapon 3 | . . . . . . . . . . . 2 . . . . . . . . . . . . . . . . . 1 Highest Loss Streak 10 | . . . . . . . 1 . 1 . 2 3 . 2 . . . . 3 1 . . 1 1 1 . 1 . 10 To Critical Strikes . | . . . . . . . . . . . . . . . . . . . . . . . . . . . . . . Average Backups 8 | 5 7 5 5 9 7 8 12 9 8 7 7 9 8 5 6 8 8 9 9 11 12 13 14 13 12 12 11 12 5 Power . | 1 1 . . . . . . 1 . . . . . . . . 1 1 . . 1 1 1 1 1 1 1 1 . Propulsion 1 | 3 4 . . 3 3 4 4 2 2 2 2 . . . 1 . . 1 . . 1 1 1 1 2 2 1 1 . Utility 3 | . . 1 2 3 1 1 1 1 2 2 2 2 3 2 2 2 4 5 5 7 6 6 7 6 5 5 5 4 1 Weapon 2 | 1 1 2 2 1 1 1 3 2 1 2 1 2 2 1 2 2 1 1 2 3 3 3 4 3 2 3 2 3 2 Tool/Special . | . . . . . . . . . . . . . . . . . . . . . . . . . . . . . . Unused Backups 31 | . 2 3 . 6 . 2 3 . . . . 2 1 . . 2 1 . 1 . 1 . . 4 . . . . 3 Power 5 | . 2 . . 1 . . . . . . . . 1 . . . . . 1 . . . . . . . . . . Propulsion 10 | . . 2 . 3 . 2 2 . . . . . . . . . . . . . . . . 1 . . . . . Utility 8 | . . . . . . . 1 . . . . 1 . . . . 1 . . . 1 . . 3 . . . . 1 Weapon 7 | . . 1 . 2 . . . . . . . 1 . . . 1 . . . . . . . . . . . . 2 Tool/Special 1 | . . . . . . . . . . . . . . . . 1 . . . . . . . . . . . . . Average Slot Usage (%) 85 | . 100 89 85 78 80 88 92 92 90 84 89 91 77 67 87 93 92 94 93 94 94 93 94 92 85 83 84 86 72 Engine 4 | . 14 14 14 14 6 6 5 . . . . . . . 4 5 5 4 4 . . 2 2 . . . 2 4 . Core 2 | . . . . . . . . 6 6 6 5 5 5 6 4 5 2 . 1 8 5 5 5 . . . . . 2 Reactor 2 | . . . . . . . . . . . . . . . . . 2 5 2 1 5 2 2 8 9 8 8 8 7 Treads 7 | . 28 28 28 22 . . . . . . . . . . . . . . . . . . . . . . . . 1 Wheel 1 | . . . . 2 . . . . . . . . . . . . . . . . . . . . . . . . 8 Hover 13 | . . . . . 23 26 25 26 26 26 26 27 16 7 9 22 22 25 24 24 25 25 24 25 18 17 19 19 4 Device 6 | . 14 . . . 5 6 6 5 4 . . 3 7 10 11 10 14 12 9 12 9 7 10 13 17 15 15 16 8 Storage 4 | . 14 3 . 7 6 6 6 6 6 6 6 5 5 1 4 5 5 5 5 5 5 5 5 4 4 4 4 4 . Processor 15 | . . . . . 10 13 8 19 22 26 20 27 22 22 22 22 20 22 25 25 25 25 25 22 21 21 22 24 19 Hackware 7 | . . . . 2 18 20 24 20 16 13 13 6 5 9 11 11 14 15 15 10 10 10 14 8 4 4 4 . . Protection 5 | . . 13 14 4 . . 2 . . . 5 5 . . . . . . . 1 5 5 . 3 4 5 4 6 11 Energy Cannon 5 | . . 25 27 19 . . 2 . . . . . . . . . . . . . . . . . . . . . . Ballistic Gun 1 | . 28 2 . . . . . . . . 2 . . . . . . . . . . 1 . . . . . . 1 Ballistic Cannon 2 | . . . . . . . 1 5 5 . 3 3 . . 2 4 4 4 4 5 4 3 5 3 3 3 3 3 1 Peak Build Rating 211 | 7 8 13 13 26 56 61 76 80 78 79 77 89 76 74 100 103 120 122 126 128 127 128 128 160 166 168 182 195 211 Average Rating 91 | 6 7 12 13 13 50 55 64 75 74 61 68 81 71 61 89 98 114 120 119 124 124 122 125 148 165 163 174 178 164 On Entrance 88 | 6 7 8 13 13 26 53 56 76 76 71 77 68 75 72 64 98 103 120 122 120 127 124 128 125 160 166 165 169 181 Avg Prop Armor Cover (%) 4 | . . . . . . . 4 . . . . 3 6 9 5 1 1 . 9 4 . . . . . . . . 4 Naked Turns . | . . . . . . . . . . . . . . . . . . . . . . . . . . . . . . Heaviest Build 123 | 13 15 39 39 51 39 39 56 39 35 46 46 51 35 38 34 45 47 47 56 68 66 65 63 74 74 76 95 92 123 Greatest Support 102 | 40 40 40 40 40 33 35 47 44 45 46 46 56 30 30 48 48 60 60 73 61 60 60 65 81 81 78 97 102 101 Greatest Overweight (x) 13 | . . . . 1 1 1 1 . . . . 1 1 2 1 . . . 13 1 1 1 1 1 2 . 1 . 2 Average Overweight (x) . | . . . . . . . . . . . . . . . . . . . . . . . . . . . . . . Largest Inventory Capacity 15 | 8 8 8 5 15 15 15 15 10 10 10 10 10 10 10 10 10 10 10 15 15 15 15 15 15 15 15 15 15 15 Average Capacity 10 | 8 8 5 5 10 15 15 14 10 10 10 10 10 10 6 9 10 10 10 12 15 15 15 15 15 15 15 15 15 7 Most Carried 15 | 6 8 8 5 15 15 9 15 10 10 9 10 10 10 10 10 10 10 10 12 14 15 15 15 15 15 15 15 15 15 Average Carried 9 | 5 7 5 5 9 7 7 12 9 9 8 8 9 9 5 7 8 9 9 9 12 13 14 14 14 13 14 13 14 6 Final Capacity 15 | 8 8 5 5 15 15 15 10 10 10 10 10 10 10 5 10 10 10 10 15 15 15 15 15 15 15 15 15 15 5 Final Carried 15 | 4 8 5 5 15 8 7 10 10 9 8 10 10 10 5 7 10 10 10 12 14 14 15 15 15 14 15 13 14 4 Scrap Suit Usage (%) 3 | . . . . . . . . . . . . . . . . . . . . . . . . . . . . . 16 Parts Cannibalized 3 | . . . . . . . . . . . . . . . . . . . . . . . . . . . . . 3 Class Distribution -------------------- 20% | Hacker-Scout 14% | Hacker-Mutant 14% | Mutant 12% | Subdweller-Mutant 12% | Scavenger-Scrapper 9% | Scavenger-Scout 5% | Scavenger-Mutant 3% | Scout Dominant Class ---------------- Mutant | -10/Materials Subdweller-Mutant | -10/Subcaves Subdweller-Mutant | -8/Recycling Mutant | -8/Scraptown Hacker-Mutant | -6/Factory Hacker-Mutant | -6/Waste Hacker-Mutant | -6/Factory Hacker-Scout | -6/Lower Caves Hacker-Scout | -6/Lower Caves Hacker-Mutant | -6/Data Miner Hacker-Mutant | -5/Proximity Caves Scout | -5/Factory Scout | -5/Upper Caves Hacker-Scout | -5/Upper Caves Hacker-Scout | -5/Warlord Hacker-Scout | -4/Proximity Caves Hacker-Scout | -4/Factory Hacker-Scout | -4/Waste Hacker-Scout | -4/Factory Commander-Skirmisher | -4/Extension Commander-Skirmisher | -4/Cetus Scavenger-Mutant | -4/Archives Hacker-Scout | -4/Hub_04(d) Scavenger-Scout | -3/Research Scavenger-Scout | -3/Armory Scavenger-Scout | -3/Lab Scavenger-Scout | -2/Research Scavenger-Scout | -2/Quarantine Scavenger-Scrapper | -2/Protoforge Resources | -11 -10 -10 -8 -8 -6 -6 -6 -6 -6 -6 -5 -5 -5 -5 -5 -4 -4 -4 -4 -4 -4 -4 -4 -3 -3 -3 -2 -2 -2 ----------- Run | Yrd Mat Sub Rec Scr Fac Was Fac Low Low Dat Pro Fac Upp Upp War Pro Fac Was Fac Ext Cet Arc Hub Res Arm Lab Res Qua Frg Matter Collected 21420 | 214 155 541 . 131 13 167 848 550 1009 . 748 630 366 100 546 554 308 325 943 1129 322 535 200 1151 1526 146 527 708 7028 Remotely . | . . . . . . . . . . . . . . . . . . . . . . . . . . . . . . Salvage Created 25085 | 109 200 817 109 . 41 . 1019 595 698 . 1020 667 20 . 881 524 331 940 1432 1261 106 377 511 1769 1614 . 468 902 8674 Parts 983 | 10 15 41 7 . 1 . 32 26 29 . 51 43 . . 27 29 11 . 60 39 2 25 16 60 47 . 29 27 356 Haulers Intercepted 18 | . 1 . . . . . . . . . 1 1 . . . . 2 . 4 1 . . 1 7 . . . . . Recyclers Shooed 7 | . . . . . . . 1 . . . . . . . . . . . 2 . . . . 1 . . 2 1 . Parts Field Recycled . | . . . . . . . . . . . . . . . . . . . . . . . . . . . . . . Retrieved Matter . | . . . . . . . . . . . . . . . . . . . . . . . . . . . . . . Parts Self-Destructed 122 | . . 8 . . . . . 24 27 . 37 . 7 . . 19 . . . . . . . . . . . . . Prevented 6 | . . . . . . . . . . . 4 . 1 . . 1 . . . . . . . . . . . . . Parts Restored . | . . . . . . . . . . . . . . . . . . . . . . . . . . . . . . Kills | -11 -10 -10 -8 -8 -6 -6 -6 -6 -6 -6 -5 -5 -5 -5 -5 -4 -4 -4 -4 -4 -4 -4 -4 -3 -3 -3 -2 -2 -2 ------- Run | Yrd Mat Sub Rec Scr Fac Was Fac Low Low Dat Pro Fac Upp Upp War Pro Fac Was Fac Ext Cet Arc Hub Res Arm Lab Res Qua Frg Combat Hostiles Destroyed 453 | . 5 17 2 . 3 . 6 18 25 . 28 16 1 . 19 13 4 6 18 20 6 2 3 16 41 . 9 16 159 Melee 1 | . . . . . . . . . . . 1 . . . . . . . . . . . . . . . . . . Guns 53 | . 5 5 . . . . . . . . 9 . . . 1 . . . . . . . . . . . 4 . 29 Cannons 250 | . . 11 1 . 1 . 6 14 18 . 14 16 . . 15 13 4 6 18 20 6 2 3 16 23 . . 16 27 AOE 147 | . . . . . 2 . . 4 7 . 4 . 1 . 3 . . . . . . . . . 18 . 5 . 103 Classes Destroyed 30 | 2 5 1 1 . . . 3 1 . . . 1 . . 2 2 . 2 1 1 . . . . 1 . . . 7 Worker 18 | . . . . . . . 3 . . . . . . . . . 1 . 2 . . . 2 7 . . 1 1 1 Builder 18 | . . . . . . . . . . . . 1 . . . . . . 3 2 . . 4 2 . . 5 . 1 Tunneler 9 | 3 . . . . . . 1 . . . . 1 . . . . . . 1 . . . . 2 . . 1 . . Hauler 18 | . 1 . . . . . . . . . 1 1 . . . . 2 . 4 1 . . 1 7 . . . . . Recycler 19 | 1 . . . . . . 5 . . . . . . . . . . . 4 2 . . 1 3 . . 2 1 . Minesweeper 3 | . . . . . . . . . . . . . . . . 3 . . . . . . . . . . . . . Mechanic 17 | . . . . . . . . . . . . . . . 1 . . . . . . . . . . . . . 16 Operator 12 | . 1 . . . . . . . . . . 1 . . . . . . . . . 6 1 1 . . . 1 1 Drone 6 | . . . . . . . . . . . . . . . . . . . . . . . . . . . . . 6 Watcher 19 | . 1 . . . . . 4 . . . . 3 . . . . . . 2 2 . . . 1 3 . 1 . 2 Swarmer 109 | . 2 3 . . 3 . . 9 9 . 13 5 1 . . 4 . . 9 3 . . . . 10 . 9 4 25 Saboteur 11 | . . . . . . . . . . . . . . . . . . . . . . . . . 1 . . . 10 Grunt 145 | . 3 1 . . . . 2 2 12 . 14 5 . . 11 7 4 . 2 10 3 . 3 10 15 . . 6 35 Brawler 12 | . . . . . . . 1 4 . . . . . . 3 1 . . . . . . . . . . . . 3 Duelist 17 | . . . . . . . . 2 1 . . . . . 2 . . . . . . . . 1 4 . . . 7 Protector 10 | . . . . . . . . . . . . . . . 1 . . . . . . . . . 2 . . . 7 Sentry 26 | . . . 2 . . . . 2 3 . . 1 . . . . . . 3 4 . 2 . 2 4 . . . 3 Demolisher 1 | . . . . . . . . . . . . . . . . . . . . . . . . . 1 . . . . Specialist 2 | . . . . . . . . . . . . . . . . . . . . . . . . . . . . . 2 Hunter 26 | . . . . . . . . . . . . . . . . . . . 2 1 . . . 1 . . . 3 19 Programmer 38 | . . . . . . . 3 . . . 1 5 . . 2 1 . . 2 1 . . . 1 5 . . 3 14 Behemoth 2 | . . . . . . . . . . . . . . . . . . . . 1 . . . 1 . . . . . Compactor 6 | . . . . . . . . . . . . . . . . . . 6 . . . . . . . . . . . Cetus Guard 3 | . . . . . . . . . . . . . . . . . . . . . 3 . . . . . . . . Overlord 1 | . . . . . . . . . . . . . . . . . . . . . . . . . . . . . 1 Striker 8 | . . . . . . . . . . . . . . . . . . . . . . . . . . . . . 8 Executioner 17 | . . . . . . . . . . . . . . . . 1 . . . . . . . . . . . . 16 Alpha 7 1 | . . . . . . . . . . . . . . . . . . . . . . . . . . . . . 1 Subdweller 13 | . . 13 . . . . . . . . . . . . . . . . . . . . . . . . . . . Elite 2 | . . . . . . . . . . . . . . . . . . . . . . . . . . . . . 2 Scrapoid 9 | . . . . . . . . . . . . . . . . . . . . . . . . . . . . . 9 Decomposer 1 | . . . . . . . . . . . . . 1 . . . . . . . . . . . . . . . . Packrat 1 | . . . . . . . . . . . 1 . . . . . . . . . . . . . . . . . . Wasp 1 | . . . . . . . . . . . . . . . . . . . 1 . . . . . . . . . . Martyr 2 | . . . . . . . . . . . . . . . . . . 2 . . . . . . . . . . . Best Kill Streak 16 | 2 2 3 2 . 3 . 3 7 4 . 6 9 1 . 6 4 5 3 9 7 3 2 7 16 12 . 8 13 15 Combat Bots Only 12 | . 2 3 2 . 3 . 2 7 4 . 6 5 1 . 6 4 4 3 6 4 3 1 3 4 12 . 5 11 10 Max Kills in Single Turn 5 | 1 1 2 1 . 2 . 1 2 2 . 2 2 1 . 2 1 1 1 3 2 1 1 5 2 4 . 3 2 4 Gunslinging 1 | . . 1 . . . . . . . . . . . . . . . . . . . . . . . . . . . Exploded 4 | . . . . . 2 . . 2 2 . 2 . 1 . 2 . . . . . . . . . 4 . 3 . 3 Melee 1 | . . . . . . . . . . . 1 . . . . . . . . . . . . . . . . . . Uniques/NPCs Destroyed 1 | . . . . . . . . . . . . . . . . . . . . . . 1 . . . . . . . A7 (-4/Archives) Combat | -11 -10 -10 -8 -8 -6 -6 -6 -6 -6 -6 -5 -5 -5 -5 -5 -4 -4 -4 -4 -4 -4 -4 -4 -3 -3 -3 -2 -2 -2 -------- Run | Yrd Mat Sub Rec Scr Fac Was Fac Low Low Dat Pro Fac Upp Upp War Pro Fac Was Fac Ext Cet Arc Hub Res Arm Lab Res Qua Frg Hostile Shots Fired 1075 | . 43 53 2 . 11 . 53 30 36 . 114 53 7 18 16 3 2 . 65 20 7 . 5 61 31 . 28 77 340 Missed 408 | . 8 11 1 . 6 . 27 12 16 . 45 17 4 10 5 1 2 . 26 7 5 . 3 33 18 . 16 29 106 Hits 667 | . 35 42 1 . 5 . 26 18 20 . 69 36 3 8 11 2 . . 39 13 2 . 2 28 13 . 12 48 234 Melee 6 | . . . . . . . 1 . . . . . . . . . . . . . . . . . . . . . 5 Projectile 661 | . 35 42 1 . 5 . 25 18 20 . 69 36 3 8 11 2 . . 39 13 2 . 2 28 13 . 12 48 229 AOE 1 | . . . . . . . . . . . . . . . . . . . . . . . . . 1 . . . . Critical Strikes 31 | . 1 1 . . . . 1 . 1 . . 2 . . 2 . . . 1 . . . . 1 1 . . 2 18 Actively Blocked 1 | . . . . . . . . . . . . . . . . . . . . . . . . . . . . . 1 Part Disruptions 1 | . . . . . . . . . . . . . . . 1 . . . . . . . . . . . . . . Damage Taken 15574 | . 318 827 16 . 76 . 438 306 398 . 1150 1003 48 86 283 38 . . 706 234 74 . 183 440 377 . 257 997 7319 Core 2348 | . 50 119 . . 32 . 84 112 92 . 196 206 . . 57 . . . 92 . . . 82 80 46 . 65 74 961 Absorbed by Shields 166 | . . . . . . . . . . . . . . . . . . . . 126 26 . . . . . . 14 . Redirected to Shielding 279 | . . . . . . . 21 . . . . . . . . . . . . . . . . . . . . . 258 Regen/Repaired (Parts) 928 | . . . . . . 23 . . . . . 504 . . 12 . 275 52 . . . . . 32 . . . . 30 Core Remaining (%) 69 | 100 . . . 32 . . . . . . 39 . . . . 73 . . . . . . 84 . . 90 . . . Volleys Fired 1657 | 7 30 91 3 . 9 . 43 39 70 . 79 54 2 9 57 56 20 49 80 98 38 88 19 109 101 5 30 59 412 Largest 2 | 2 2 2 2 . 1 . 2 1 1 . 2 1 1 1 1 1 1 1 1 1 1 1 1 1 1 1 1 1 2 Hottest 300 | 40 40 160 160 . 80 . 134 60 60 . 120 98 43 98 60 60 60 60 60 60 60 60 60 60 60 60 60 60 300 Shots Fired 1882 | 14 60 144 6 . 9 . 58 39 71 . 79 54 2 9 57 56 20 49 80 98 39 89 19 109 101 5 30 59 526 Gun 428 | 14 60 62 . . . . . . . . 30 . . . 16 . . . . . . 57 . . . . 10 . 179 Cannon 1188 | . . 82 6 . 6 . 58 34 65 . 45 54 . 9 40 45 18 49 77 98 39 10 19 109 83 5 17 59 161 Launcher 227 | . . . . . 3 . . 5 6 . 4 . 2 . . . . . . . . . . . 18 . 3 . 186 Special 39 | . . . . . . . . . . . . . . . 1 11 2 . 3 . . 22 . . . . . . . Kinetic 1430 | 14 60 62 . . . . 30 34 65 . 61 53 . 3 40 45 18 49 77 98 39 67 19 109 83 5 17 59 323 Thermal 196 | . . 82 6 . 6 . 28 . . . 14 1 . 6 . 11 . . 3 . . 22 . . . . . . 17 Explosive 227 | . . . . . 3 . . 5 6 . 4 . 2 . . . . . . . . . . . 18 . 3 . 186 Electromagnetic . | . . . . . . . . . . . . . . . . . . . . . . . . . . . . . . Entropic 26 | . . . . . . . . . . . . . . . 16 . . . . . . . . . . . 10 . . Robot Hit Streak 40 | 4 10 11 8 . 9 . 15 14 12 . 22 17 . . 24 26 18 27 25 22 19 14 17 21 10 . 22 26 40 Robot Miss Streak 9 | 3 9 2 . . 3 . 3 4 5 . 9 3 . . 1 4 1 2 5 4 4 4 5 4 5 . 3 9 4 Penetration Max 2 | . . . . . . . . . . . 1 . . . . . . . . . . . . . . . 2 . 2 Secondary Targets 7 | . 1 1 . . . . . . . . . . . . . . . . . . . . . . . . . . 5 Max Gunslinging Chain 1 | . 1 1 . . . . . . . . . . . . . . . . . . . . . . . . . . 1 Shots Hit Robots 1255 | 7 35 76 5 . 4 . 33 30 53 2 51 36 3 . 43 49 14 49 75 89 38 69 12 82 68 . 22 42 268 Core Hits 1377 | 5 16 28 2 . 4 . 21 29 41 . 43 37 2 . 36 42 14 24 82 79 30 35 20 70 105 . 17 40 555 Critical Kills 19 | 1 . 1 1 . . . . 1 2 . 3 . . . . . . . . . . . . . . . . . 10 Critical Parts Destroyed 22 | . . . . . . . . . 1 . . . 1 . 1 . . . . . . . . . . . . . 19 Critical Strikes 131 | 1 . 1 1 . . . 3 4 6 . 6 2 1 . 3 1 . 2 1 7 2 1 1 4 15 . 4 11 54 Meltdown 2 | . . 1 1 . . . . . . . . . . . . . . . . . . . . . . . . . . Destroy 38 | 1 . . . . . . . 1 3 . 3 . . . . . . . . . . . . . . . . . 30 Blast 89 | . . . . . . . 3 3 3 . 3 2 . . 2 1 . 2 1 7 2 1 1 4 15 . 4 11 24 Smash 1 | . . . . . . . . . . . . . 1 . . . . . . . . . . . . . . . . Detonate 1 | . . . . . . . . . . . . . . . 1 . . . . . . . . . . . . . . Melee Attacks 69 | . . . . . . 1 44 . . 2 3 2 11 5 . . . . . . . . . 1 . . . . . Impact 58 | . . . . . . 1 44 . . . . 1 11 1 . . . . . . . . . . . . . . . Slashing 4 | . . . . . . . . . . . . . . 4 . . . . . . . . . . . . . . . Piercing 3 | . . . . . . . . . . . 3 . . . . . . . . . . . . . . . . . . Sneak Attacks 10 | . . . . . . . 5 . . 2 . 1 1 . . . . . . . . . . 1 . . . . . Combat Hostiles . | . . . . . . . . . . . . . . . . . . . . . . . . . . . . . . Follow-up Attacks . | . . . . . . . . . . . . . . . . . . . . . . . . . . . . . . Damage Inflicted 100864 | 104 470 1454 153 . 259 . 1936 1676 3332 . 2560 2398 268 . 2958 2254 956 3978 4707 5723 2712 1407 1378 5137 7719 . 1704 2657 42964 Guns 7954 | 104 446 568 . . . . . . . . 465 . . . 462 . . . . . . 686 . . . . 392 . 4831 Cannons 54492 | . . 886 129 . 76 . 1342 1276 2525 . 1695 2396 . . 2450 2180 956 3978 4307 5723 2712 591 788 5137 4111 . 653 2657 7924 Explosions 37520 | . . . . . 183 . 164 400 807 . 368 . 100 . 46 . . . 386 . . . 590 . 3608 . 659 . 30209 Melee 630 | . . . . . . . 430 . . . 32 . 168 . . . . . . . . . . . . . . . . Ramming 50 | . 24 . 24 . . . . . . . . 2 . . . . . . . . . . . . . . . . . Kinetic 57704 | 104 446 568 . . . . 1088 1276 2525 . 1967 2396 . . 2450 2180 956 3978 4307 5723 2712 1277 788 5137 4111 . 653 2657 10405 Thermal 4433 | . . 886 129 . 76 . 418 . . . 193 . . . 46 74 . . 131 . . 130 . . . . . . 2350 Explosive 36334 | . . . . . 183 . . 400 807 . 368 . 100 . . . . . . . . . . . 3608 . 659 . 30209 Electromagnetic 859 | . . . . . . . . . . . . . . . . . . . 269 . . . 590 . . . . . . Impact 598 | . . . . . . . 430 . . . . . 168 . . . . . . . . . . . . . . . . Slashing . | . . . . . . . . . . . . . . . . . . . . . . . . . . . . . . Piercing 32 | . . . . . . . . . . . 32 . . . . . . . . . . . . . . . . . . Entropic 854 | . . . . . . . . . . . . . . . 462 . . . . . . . . . . . 392 . . Highest Corruption 13 | . 2 2 2 . . 9 11 4 3 3 3 13 12 7 7 1 . . 2 2 2 2 3 . 1 1 . 2 11 Average Corruption 3 | . 2 2 2 . . 9 9 3 3 3 3 2 8 7 1 1 . . 1 2 2 1 3 . 1 1 . 2 2 Corruption Purged 32 | . . . . . . . 8 1 . . . 1 5 . . . . . . . . 2 . . . . . . 15 Corruption Blocked . | . . . . . . . . . . . . . . . . . . . . . . . . . . . . . . Effects 293 | . 11 45 4 . . 2 59 14 20 2 18 5 7 13 1 7 . . 2 8 3 5 3 . . 1 . 5 58 Message Errors 73 | . 1 8 1 . . . 13 3 9 . 3 2 2 3 . 2 . . 1 2 1 1 1 . . . . 1 19 Matter Fused 67 | . 3 13 . . . 1 11 5 3 . 3 1 3 3 1 1 . . . 4 . 1 1 . . . . 1 12 Heat Flow Errors 42 | . 1 5 1 . . . 8 4 1 . 7 1 . 1 . 1 . . . 1 . . . . . . . 1 10 Energy Discharges 33 | . 1 8 2 . . . 2 . 3 1 1 1 2 3 . . . . . . 1 2 . . . 1 . 1 4 Parts Rejected 5 | . . 1 . . . . 2 . . . . . . . . . . . . . . . . . . . . . 2 Parts Fused 1 | . . . . . . . . . . . 1 . . . . . . . . . . . . . . . . . . Data Loss (minor) 28 | . 2 3 . . . 1 7 2 2 1 . . . 1 . 1 . . 1 . . . 1 . . . . 1 5 Data Loss (major) 15 | . 1 4 . . . . 4 . 1 . . . . 1 . . . . . . . . . . . . . . 4 Misfires 15 | . 1 2 . . . . 8 . 1 . 1 . . . . . . . . . 1 1 . . . . . . . Alerts 4 | . . . . . . . . . . . . . . 1 . 2 . . . 1 . . . . . . . . . Misdirections 3 | . . . . . . . 3 . . . . . . . . . . . . . . . . . . . . . . Weapon Failures 7 | . 1 1 . . . . 1 . . . 2 . . . . . . . . . . . . . . . . . 2 Overload Shots . | . . . . . . . . . . . . . . . . . . . . . . . . . . . . . . Overflow Damage 2854 | . . . . . 14 . 212 31 152 . 78 79 104 . 83 95 12 . 69 95 40 . 40 89 135 . 80 17 1429 Projectiles 1530 | . . . . . . . 32 31 101 . 33 79 . . 83 95 12 . 66 95 40 . 7 89 86 . 60 17 604 Explosions 1040 | . . . . . 14 . . . 51 . 45 . . . . . . . 3 . . . 33 . 49 . 20 . 825 Melee 284 | . . . . . . . 180 . . . . . 104 . . . . . . . . . . . . . . . . Knockbacks 196 | . . . . . . . 10 5 16 . 2 13 . . 3 3 . 2 18 29 6 1 4 21 11 . 5 23 24 Impact 2 | . . . . . . . 2 . . . . . . . . . . . . . . . . . . . . . . Kinetic 183 | . . . . . . . 8 4 15 . 2 12 . . 3 3 . 2 17 28 6 1 4 21 11 . 5 19 22 Secondary 11 | . . . . . . . . 1 1 . . 1 . . . . . . 1 1 . . . . . . . 4 2 Self-Inflicted Damage 325 | . . . . . 3 . . 21 35 . 97 1 . . . . . . 22 . . . 146 . . . . . . Shots 9 | . . . . . 1 . . 1 2 . 2 . . . . . . . 1 . . . 2 . . . . . . Rammed 11 | . 4 . 6 . . . . . . . . 1 . . . . . . . . . . . . . . . . . Targets Rammed 11 | . 4 . 6 . . . . . . . . 1 . . . . . . . . . . . . . . . . . Kicked . | . . . . . . . . . . . . . . . . . . . . . . . . . . . . . . Crushed . | . . . . . . . . . . . . . . . . . . . . . . . . . . . . . . Highest Temperature 713 | 6 265 316 201 . 168 . 259 242 109 . 274 188 1 240 332 163 146 302 219 371 268 110 90 266 320 100 58 26 713 Average Temperature 74 | 6 77 72 89 . 83 . 66 69 20 . 75 41 1 98 74 56 52 145 60 111 109 22 35 73 95 54 17 26 140 Received Heat Transfer 2138 | . 75 389 . . . . 60 9 108 . 72 27 9 24 81 . . . . 22 . . . 51 . . . 101 1110 Effects 12 | . . . . . . . . . . . . . . . . . . 3 . 1 3 . . . 3 . . . 2 Shutdowns 1 | . . . . . . . . . . . . . . . . . . . . 1 . . . . . . . . . Energy Bleed 4 | . . . . . . . . . . . . . . . . . . 1 . . 1 . . . 2 . . . . Interference 5 | . . . . . . . . . . . . . . . . . . 2 . . 2 . . . 1 . . . . Short Circuit 1 | . . . . . . . . . . . . . . . . . . . . . . . . . . . . . 1 Damage (minor) 1 | . . . . . . . . . . . . . . . . . . . . . . . . . . . . . 1 Siege Activations . | . . . . . . . . . . . . . . . . . . . . . . . . . . . . . . Martial Activations . | . . . . . . . . . . . . . . . . . . . . . . . . . . . . . . Shielding Activations . | . . . . . . . . . . . . . . . . . . . . . . . . . . . . . . Robots Disrupted 2 | . . . . . . . . . . . . . . . . 1 . . 1 . . . . . . . . . . Combat Hostiles . | . . . . . . . . . . . . . . . . . . . . . . . . . . . . . . Robots Corrupted 2 | . . . . . . . 1 . . . . . . . . . . . . . . . 1 . . . . . . Combat Hostiles . | . . . . . . . . . . . . . . . . . . . . . . . . . . . . . . Parts Fried 9 | . . . . . . . 3 . . . . . . . 1 3 . . . . . . 2 . . . . . . Impact Corruptions 10 | . . . . . . . 6 . . . . . 3 . . . . . 1 . . . . . . . . . . Robots Melted 2 | . . 1 1 . . . . . . . . . . . . . . . . . . . . . . . . . . Combat Hostiles 2 | . . 1 1 . . . . . . . . . . . . . . . . . . . . . . . . . . Parts Melted 8 | . . . 4 . . . 1 . . . . . . . . . . . 1 . . . . . . . . . 2 Heat Transferred 3364 | . . 1184 185 . 150 . 500 . . . 370 . . . 50 275 . . 225 . . 425 . . . . . . . Parts Sabotaged . | . . . . . . . . . . . . . . . . . . . . . . . . . . . . . . Parts Stolen . | . . . . . . . . . . . . . . . . . . . . . . . . . . . . . . Parts Stripped . | . . . . . . . . . . . . . . . . . . . . . . . . . . . . . . Power Chain Reactions 2 | . . . . . . . . . . . . . . . . . . . 2 . . . . . . . . . . Alert | -11 -10 -10 -8 -8 -6 -6 -6 -6 -6 -6 -5 -5 -5 -5 -5 -4 -4 -4 -4 -4 -4 -4 -4 -3 -3 -3 -2 -2 -2 ------- Run | Yrd Mat Sub Rec Scr Fac Was Fac Low Low Dat Pro Fac Upp Upp War Pro Fac Was Fac Ext Cet Arc Hub Res Arm Lab Res Qua Frg Maximum Alert Level 5 | . . . . . . . 2 . . . . 2 . . . . . . 3 3 3 2 3 3 5 . 1 2 5 Low Security (%) 28 | 100 100 . 100 . 100 100 93 . . . . . . . . . 100 100 11 . . . 17 . . . 85 30 . Level 1 9 | . . . . . . . . . . . . 32 . . . . . . 9 63 . 53 11 . . . 14 11 1 Level 2 21 | . . . . . . . 6 . . . . 66 . . . . . . 15 31 34 46 22 45 27 . . 57 13 Level 3 11 | . . . . . . . . . . . . . . . . . . . 63 4 65 . 48 54 31 . . . 3 Level 4 7 | . . . . . . . . . . . . . . . . . . . . . . . . . 36 . . . 17 Level 5 20 | . . . . . . . . . . . . . . . . . . . . . . . . . . . . . 63 High Security . | . . . . . . . . . . . . . . . . . . . . . . . . . 4 . . . . Max Security . | . . . . . . . . . . . . . . . . . . . . . . . . . . . . . . Peak Influence 4754 | 10 75 . 52 . 184 57 514 . . . . 515 . . . . 109 35 964 983 911 450 947 848 1683 . 262 593 4754 Initial 550 | . 3 . 21 . . 57 11 . . . . 259 . . . . . 35 . 378 550 348 95 470 445 . . 135 287 Average 1029 | 2 17 . 11 . 98 30 95 . . . . 394 . . . . 6 7 661 428 763 373 583 682 994 . 150 391 2422 Influence Increases 20835 | 20 163 230 41 . 194 39 952 497 771 . 870 672 238 60 480 362 212 16 1670 1519 521 237 1021 1312 2046 . 459 686 5547 Destroy 0b10 Robot/C 9460 | . 100 80 40 . 60 . 120 420 500 . 560 320 100 . 360 260 80 . 640 680 240 80 120 320 960 . 180 320 2920 Destroy 0b10 Robot/NC 770 | 20 15 . . . . . 65 . . . 5 35 . . 10 15 15 . 85 40 10 30 50 115 25 . 50 15 170 Destroy Leader 1312 | . 24 . . . 10 . 48 20 30 . 50 58 10 . . 40 12 . 142 76 10 . 34 76 156 . 22 30 464 Allied During Kill 1745 | . . . . . . . . 12 1 . . . 23 . 5 17 . . 352 558 191 110 176 . 300 . . . . Successful Hack 523 | . 7 . . . . . 37 . . . . 3 . . . . 23 . 22 . 11 . 3 233 5 . 24 60 95 Select Force Hacks 30 | . . . . . . . . . . . . . . . . . . . . . . . . 30 . . . . . Disable Machine 1485 | . . . . . 60 . 270 . . . . 60 . . . . 30 . 345 15 . 15 150 60 150 . 30 75 225 Anti-Garrison Action 150 | . . . . . . . . . . . . . . . . . . . . . . . . . . . . . 150 Destroy Structure 2555 | . 2 . 1 . 64 39 97 . . . . 76 . . . . 22 16 54 90 44 2 398 88 390 . 138 141 893 Partial Spotted 150 | . . . . . . . . . . . . 45 . . . . 30 . . . . . 30 . . . 15 . 30 Lose Combat Pursuer 2655 | . 15 150 . . . . 315 45 240 . 255 75 105 60 105 30 . . 30 60 15 . 60 390 60 . . 45 600 Influence Decreases 16081 | 15 146 207 86 . 30 187 454 547 587 648 458 609 347 260 296 712 111 117 898 1308 633 833 400 1360 1211 1683 218 416 1304 Entered New Map 6431 | . 2 11 24 . . 107 5 191 89 648 . 153 177 70 166 350 . 66 . 394 433 523 180 426 403 1683 . 106 224 Time Decay 6761 | 15 144 196 62 . 30 40 370 356 458 . 428 416 150 170 130 362 91 51 278 404 140 270 130 474 318 . 198 310 770 Lost Part 540 | . . . . . . . 20 . 20 . 30 40 . 20 . . . . 40 20 . . 10 10 10 . 20 . 300 Lost Ally 810 | . . . . . . 40 20 . 20 . . . 20 . . . 20 . 280 40 60 40 80 . 180 . . . 10 Purge Threat 1539 | . . . . . . . 39 . . . . . . . . . . . 300 450 . . . 450 300 . . . . Squads Dispatched 110 | . 2 . . . . . 22 . 1 . . 15 . . . . 9 . 10 3 1 . 1 18 7 . 1 4 16 Investigation 58 | . 1 . . . . . 14 . 1 . . 8 . . . . 6 . 3 1 1 . . 13 2 . . . 8 Extermination 15 | . . . . . . . 5 . . . . 2 . . . . 1 . 1 . . . . 1 1 . 1 2 1 Reinforcement 26 | . 1 . . . . . 2 . . . . 5 . . . . 1 . 3 2 . . 1 4 . . . 1 6 Assault 7 | . . . . . . . 1 . . . . . . . . . . . . . . . . . 4 . . 1 1 Garrison 4 | . . . . . . . . . . . . . . . . . 1 . 3 . . . . . . . . . . Intercept . | . . . . . . . . . . . . . . . . . . . . . . . . . . . . . . Searches Triggered . | . . . . . . . . . . . . . . . . . . . . . . . . . . . . . . Unchained Authorized 2 | . . . . . . . . . . . . . . . . . . . . . . . . . . . 1 1 . Data Miner Redirects 3 | . . . . . . . . . . . . . . . . . . . . 1 . . . . . . . 1 1 Construction Impeded 4 | . . . . . . . 1 . . . . . . . . . . . 2 1 . . . . . . . . . Haulers Reinforced 3 | . . . . . . . . . . . . . . . . . 1 . . . . . . 2 . . . . . Active Scanning Responses . | . . . . . . . . . . . . . . . . . . . . . . . . . . . . . . Cargo Convoy Interrupts 1 | . . . . . . . . . . . . 1 . . . . . . . . . . . . . . . . . Stealth | -11 -10 -10 -8 -8 -6 -6 -6 -6 -6 -6 -5 -5 -5 -5 -5 -4 -4 -4 -4 -4 -4 -4 -4 -3 -3 -3 -2 -2 -2 --------- Run | Yrd Mat Sub Rec Scr Fac Was Fac Low Low Dat Pro Fac Upp Upp War Pro Fac Was Fac Ext Cet Arc Hub Res Arm Lab Res Qua Frg Distress Signals 38 | . 1 . . . . . . . . . . 1 . . . . . . 4 2 2 . 2 6 1 . . 2 17 Communications Jammed 129 | . . . . . . . . . . . . . . . . . . . 6 . . . . . 21 . 2 18 82 Distress Signals 129 | . . . . . . . . . . . . . . . . . . . 6 . . . . . 21 . 2 18 82 Times Spotted 980 | . 10 23 1 . 3 5 42 22 33 . 41 35 11 4 42 12 4 6 31 37 14 43 14 45 47 . 12 25 418 Peak Tracking Total 13 | . 3 3 . . 3 4 7 9 10 . 13 9 7 4 12 5 4 3 7 4 5 1 5 8 9 . 5 4 13 Tactical Retreats 91 | . 1 4 . . . 1 11 3 7 . 6 5 3 3 3 1 . . 1 3 1 . 2 10 2 . . 3 21 Traps | -11 -10 -10 -8 -8 -6 -6 -6 -6 -6 -6 -5 -5 -5 -5 -5 -4 -4 -4 -4 -4 -4 -4 -4 -3 -3 -3 -2 -2 -2 ------- Run | Yrd Mat Sub Rec Scr Fac Was Fac Low Low Dat Pro Fac Upp Upp War Pro Fac Was Fac Ext Cet Arc Hub Res Arm Lab Res Qua Frg Traps Triggered 20 | . 1 3 . . 1 . 4 . . . . . . . 1 . 1 . 1 1 . . . 1 1 . 1 1 3 Indirectly . | . . . . . . . . . . . . . . . . . . . . . . . . . . . . . . Trap Hack Attempts . | . . . . . . . . . . . . . . . . . . . . . . . . . . . . . . Triggered . | . . . . . . . . . . . . . . . . . . . . . . . . . . . . . . Disarmed . | . . . . . . . . . . . . . . . . . . . . . . . . . . . . . . Reprogrammed . | . . . . . . . . . . . . . . . . . . . . . . . . . . . . . . Reused 2 | . . . . . . . . . . . . . . . . 2 . . . . . . . . . . . . . Traps Extracted . | . . . . . . . . . . . . . . . . . . . . . . . . . . . . . . Installed 7 | . . . . . . . . . . . . . . . . 7 . . . . . . . . . . . . . Triggered 2 | . . . . . . . . . . . . . . . . 2 . . . . . . . . . . . . . Most Traps Carried 3 | . . . . . . . . . . . . . . . . 3 . . . . . . . . . . . . . Machines | -11 -10 -10 -8 -8 -6 -6 -6 -6 -6 -6 -5 -5 -5 -5 -5 -4 -4 -4 -4 -4 -4 -4 -4 -3 -3 -3 -2 -2 -2 ---------- Run | Yrd Mat Sub Rec Scr Fac Was Fac Low Low Dat Pro Fac Upp Upp War Pro Fac Was Fac Ext Cet Arc Hub Res Arm Lab Res Qua Frg Machines Disabled 111 | . . . . . 4 . 18 . 4 . . 4 . . 1 . 2 . 23 3 . 1 10 4 10 1 2 5 19 Max in Single Turn 12 | . . . . . 3 . 12 . 2 . . 1 . . 1 . . . 6 1 . 1 8 1 1 1 1 1 3 Garrison Access 7 | . . . . . . . 1 . . . . . . . . . . . . . . . 1 3 . . 1 . 1 Network Hub 4 | . . . . . . . . . . . . . . . . . . . . . . . 4 . . . . . . Energy Cycler 1 | . . . . . . . . . . . . . . . . . . . . 1 . . . . . . . . . Machines Repaired 2 | . . . . . . . 1 . . . . . . . . . . . . . . . . . 1 . . . . Machines Dismantled . | . . . . . . . . . . . . . . . . . . . . . . . . . . . . . . Machines Sabotaged . | . . . . . . . . . . . . . . . . . . . . . . . . . . . . . . Overloaded Fab Kills . | . . . . . . . . . . . . . . . . . . . . . . . . . . . . . . Hacking | -11 -10 -10 -8 -8 -6 -6 -6 -6 -6 -6 -5 -5 -5 -5 -5 -4 -4 -4 -4 -4 -4 -4 -4 -3 -3 -3 -2 -2 -2 --------- Run | Yrd Mat Sub Rec Scr Fac Was Fac Low Low Dat Pro Fac Upp Upp War Pro Fac Was Fac Ext Cet Arc Hub Res Arm Lab Res Qua Frg Machines Accessed 129 | . 2 2 2 1 . . 23 . 1 4 1 12 2 . 4 . 9 . 11 2 3 . 2 21 3 2 3 5 14 Terminals 56 | . 2 . 2 . . . 12 . 1 . 1 4 . . . . 1 . 7 2 3 . 1 7 3 . 2 2 6 Fabricators 13 | . . . . . . . 4 . . . . . . . . . 2 . 1 . . . . 2 . . . . 4 Repair Stations 6 | . . . . . . . . . . . . 2 . . . . 2 . . . . . . 2 . . . . . Recycling Units 23 | . . . . . . . 5 . . . . 5 . . . . 4 . 1 . . . . 5 . . . . 3 Scanalyzers 10 | . . . . . . . 1 . . . . 1 . . . . . . 2 . . . . 3 . . . 2 1 Garrison Access 6 | . . . . . . . 1 . . . . . . . . . . . . . . . 1 2 . . 1 1 . Total Hacks 424 | . 6 2 3 3 . . 72 . 4 28 6 26 5 . 8 . 22 . 25 7 10 . 13 73 23 20 14 13 41 Successful 254 | . 1 2 1 3 . . 42 . 4 28 6 17 5 . 8 . 17 . 19 4 5 . 7 39 4 20 5 3 14 Failed 167 | . 5 . 2 . . . 29 . . . . 8 . . . . 5 . 6 3 5 . 6 33 19 . 9 10 27 Catastrophic 39 | . 3 . . . . . 2 . . . . 1 . . . . . . 1 3 1 . 1 7 5 . 3 4 8 Database Lockouts 3 | . . . . . . . 1 . . . . 1 . . . . . . . . . . . 1 . . . . . Manual 192 | . 6 . 3 . . . 51 . . . . 15 . . 1 . 10 . 11 7 1 . 10 32 23 . 2 1 19 Terminals 213 | . 6 . 3 . . . 52 . 4 . 6 10 . . . . 4 . 14 7 10 . 11 35 23 . 10 3 15 Fabricators 46 | . . . . . . . 9 . . . . . . . . . 5 . 4 . . . . 13 . . . . 15 Repair Stations 21 | . . . . . . . . . . . . 8 . . . . 7 . . . . . . 6 . . . . . Recycling Units 33 | . . . . . . . 5 . . . . 5 . . . . 6 . 2 . . . . 8 . . . . 7 Scanalyzers 35 | . . . . . . . 5 . . . . 3 . . . . . . 5 . . . . 9 . . . 9 4 Garrison Access 10 | . . . . . . . 1 . . . . . . . . . . . . . . . 2 2 . . 4 1 . Terminal Hacks 142 | . 1 2 1 3 . . 19 . 4 28 6 1 5 . 8 . 1 . 6 4 5 . 5 15 3 20 3 . 2 Record 61 | . . . . 3 . . . . 4 10 6 . 4 . 7 . . . . . 4 . . 2 . 20 . . 1 Part Schematic 18 | . 1 . 1 . . . 3 . . 11 . . . . . . . . . . . . 1 1 . . . . . Robot Schematic 4 | . . . . . . . . . . 4 . . . . . . . . . . . . . . . . . . . Robot Analysis 4 | . . . . . . . 4 . . . . . . . . . . . . . . . . . . . . . . Prototype ID Bank 4 | . . . . . . . . . . 3 . . . . . . . . . . . . . 1 . . . . . Open Door 5 | . . 1 . . . . . . . . . . 1 . 1 . . . 1 . 1 . . . . . . . . Level Access Points 3 | . . . . . . . 1 . . . . . . . . . . . . . . . 1 1 . . . . . Branch Access Points 5 | . . . . . . . 1 . . . . 1 . . . . . . 1 . . . . 1 . . 1 . . Emergency Access Points 2 | . . . . . . . 1 . . . . . . . . . . . . . . . 1 . . . . . . Terminal Index 7 | . . . . . . . 1 . . . . . . . . . 1 . . . . . 1 1 1 . 1 . 1 Scanalyzer Index 1 | . . . . . . . 1 . . . . . . . . . . . . . . . . . . . . . . Alert Level 4 | . . . . . . . 1 . . . . . . . . . . . . 1 . . . 1 . . 1 . . Unreport Threat 11 | . . . . . . . 1 . . . . . . . . . . . 2 3 . . . 3 2 . . . . Recall Investigation 2 | . . . . . . . 2 . . . . . . . . . . . . . . . . . . . . . . Recall Extermination 1 | . . . . . . . 1 . . . . . . . . . . . . . . . . . . . . . . Hauler Manifests 2 | . . . . . . . 1 . . . . . . . . . . . . . . . . 1 . . . . . Registered Components 2 | . . . . . . . 1 . . . . . . . . . . . . . . . . 1 . . . . . Registered Prototypes 1 | . . . . . . . . . . . . . . . . . . . . . . . . 1 . . . . . Zone Layout 4 | . . . . . . . . . . . . . . . . . . . 2 . . . 1 1 . . . . . Proto ID Catalog 1 | . . 1 . . . . . . . . . . . . . . . . . . . . . . . . . . . Fabricator Hacks 22 | . . . . . . . 8 . . . . . . . . . 3 . 2 . . . . 5 . . . . 4 Network Status 2 | . . . . . . . . . . . . . . . . . 1 . . . . . . 1 . . . . . Load Schematic 11 | . . . . . . . 4 . . . . . . . . . 1 . 1 . . . . 2 . . . . 3 Build 9 | . . . . . . . 4 . . . . . . . . . 1 . 1 . . . . 2 . . . . 1 Repair Station Hacks 12 | . . . . . . . . . . . . 5 . . . . 6 . . . . . . 1 . . . . . Scan Component 7 | . . . . . . . . . . . . 3 . . . . 3 . . . . . . 1 . . . . . Repair 5 | . . . . . . . . . . . . 2 . . . . 3 . . . . . . . . . . . . Recycling Unit Hacks 2 | . . . . . . . . . . . . . . . . . 1 . 1 . . . . . . . . . . Retrieve Matter 1 | . . . . . . . . . . . . . . . . . . . 1 . . . . . . . . . . Retrieve Components 1 | . . . . . . . . . . . . . . . . . 1 . . . . . . . . . . . . Scanalyzer 22 | . . . . . . . 4 . . . . 2 . . . . . . 5 . . . . 6 . . . 3 2 Insert Component 5 | . . . . . . . 1 . . . . . . . . . . . 1 . . . . 2 . . . 1 . Analyze 3 | . . . . . . . 1 . . . . . . . . . . . 1 . . . . 1 . . . . . Retrieve Study 14 | . . . . . . . 2 . . . . 2 . . . . . . 3 . . . . 3 . . . 2 2 Garrison Access Hacks 5 | . . . . . . . 1 . . . . . . . . . . . . . . . 1 2 . . 1 . . Seal Access 5 | . . . . . . . 1 . . . . . . . . . . . . . . . 1 2 . . 1 . . Unauthorized Hacks 49 | . . . . . . . 10 . . . . 9 . . . . 6 . 5 . . . 1 10 1 . 1 . 6 Terminals 21 | . . . . . . . 5 . . . . 3 . . . . 1 . 3 . . . 1 2 1 . 1 . 4 Track 4 | . . . . . . . . . . . . . . . . . . . 1 . . . . 1 . . . . 2 Assimilate 3 | . . . . . . . 2 . . . . . . . . . . . . . . . . . . . . . 1 Botnet 11 | . . . . . . . 2 . . . . 2 . . . . 1 . 1 . . . 1 1 1 . 1 . 1 Operators 3 | . . . . . . . 1 . . . . 1 . . . . . . 1 . . . . . . . . . . Fabricators 3 | . . . . . . . . . . . . . . . . . 1 . 1 . . . . 1 . . . . . Prioritize 2 | . . . . . . . . . . . . . . . . . . . 1 . . . . 1 . . . . . Haulers 1 | . . . . . . . . . . . . . . . . . 1 . . . . . . . . . . . . Repair Stations 2 | . . . . . . . . . . . . 1 . . . . . . . . . . . 1 . . . . . Patch 2 | . . . . . . . . . . . . 1 . . . . . . . . . . . 1 . . . . . Recycling Units 22 | . . . . . . . 5 . . . . 5 . . . . 4 . 1 . . . . 5 . . . . 2 Fedlink 22 | . . . . . . . 5 . . . . 5 . . . . 4 . 1 . . . . 5 . . . . 2 Scanalyzers 1 | . . . . . . . . . . . . . . . . . . . . . . . . 1 . . . . . Extract 1 | . . . . . . . . . . . . . . . . . . . . . . . . 1 . . . . . Garrison Access . | . . . . . . . . . . . . . . . . . . . . . . . . . . . . . . Data Cores Recovered . | . . . . . . . . . . . . . . . . . . . . . . . . . . . . . . Used . | . . . . . . . . . . . . . . . . . . . . . . . . . . . . . . Hacking Detections 56 | . 2 . 1 . . . 9 . 1 . 1 6 . . . . 4 . 5 1 1 . 1 8 2 . 1 4 9 Full Trace Events 27 | . 2 . 1 . . . 9 . 1 . . 2 . . . . 2 . 1 . 1 . . 3 2 . . . 3 Feedback Events 1 | . . . . . . . . . . . . . . . . . . . . . . . . . . . . . 1 Hackware Fried 1 | . . . . . . . . . . . . . . . . . . . . . . . . . . . . . 1 Feedback Blocked 2 | . . . . . . . 1 . . . . . . . . . 1 . . . . . . . . . . . . Robot Schematics Acquired 4 | . . . . . . . . . . 4 . . . . . . . . . . . . . . . . . . . Robots Built . | . . . . . . . . . . . . . . . . . . . . . . . . . . . . . . Authchips . | . . . . . . . . . . . . . . . . . . . . . . . . . . . . . . Time . | . . . . . . . . . . . . . . . . . . . . . . . . . . . . . . Total Robot Build Rating . | . . . . . . . . . . . . . . . . . . . . . . . . . . . . . . Part Schematics Acquired 22 | . 1 . 1 . . . 4 . . 11 . . . . . . . . 1 . . . 1 3 . . . . . Parts Built 11 | . . . . . . . 6 . . . . . . . . . 1 . 1 . . . . 2 . . . . 1 Authchips . | . . . . . . . . . . . . . . . . . . . . . . . . . . . . . . Time 777 | . . . . . . . 465 . . . . . . . . . 84 . 84 . . . . 88 . . . . 56 Total Part Build Rating 67 | . . . . . . . 35 . . . . . . . . . 6 . 6 . . . . 14 . . . . 6 Part Studies Acquired 14 | . . . . . . . 2 . . . . 2 . . . . . . 3 . . . . 3 . . . 2 2 Parts Repaired 5 | . . . . . . . . . . . . 2 . . . . 3 . . . . . . . . . . . . Time 344 | . . . . . . . . . . . . 145 . . . . 199 . . . . . . . . . . . . Parts Recycled . | . . . . . . . . . . . . . . . . . . . . . . . . . . . . . . Recycled Matter . | . . . . . . . . . . . . . . . . . . . . . . . . . . . . . . Retrieved Matter . | . . . . . . . . . . . . . . . . . . . . . . . . . . . . . . Retrieved Components 2 | . . . . . . . . . . . . . . . . . 2 . . . . . . . . . . . . Parts Scanalyzed 3 | . . . . . . . 1 . . . . . . . . . . . 1 . . . . 1 . . . . . Part Schematics Acquired 3 | . . . . . . . 1 . . . . . . . . . . . 1 . . . . 1 . . . . . Parts Damaged 1 | . . . . . . . . . . . . . . . . . . . 1 . . . . . . . . . . Bothacking | -11 -10 -10 -8 -8 -6 -6 -6 -6 -6 -6 -5 -5 -5 -5 -5 -4 -4 -4 -4 -4 -4 -4 -4 -3 -3 -3 -2 -2 -2 ------------ Run | Yrd Mat Sub Rec Scr Fac Was Fac Low Low Dat Pro Fac Upp Upp War Pro Fac Was Fac Ext Cet Arc Hub Res Arm Lab Res Qua Frg Used RIF Installer . | . . . . . . . . . . . . . . . . . . . . . . . . . . . . . . Robots Hacked 3 | . . . . . . . . . . 1 . . . . 1 . 1 . . . . . . . . . . . . Non-combat 1 | . . . . . . . . . . . . . . . . . 1 . . . . . . . . . . . . Combat 2 | . . . . . . . . . . 1 . . . . 1 . . . . . . . . . . . . . . Robot Hacks Applied 4 | . . . . . . . . . . 2 . . . . 1 . 1 . . . . . . . . . . . . parse_system 3 | . . . . . . . . . . 2 . . . . 1 . . . . . . . . . . . . . . find_chute 1 | . . . . . . . . . . . . . . . . . 1 . . . . . . . . . . . . Relay Couplers Released 6 | . . . . . . . . . . . . . . . . . . . . . . . 1 3 . . . . 2 Machine Destruction 6 | . . . . . . . . . . . . . . . . . . . . . . . 1 3 . . . . 2 Fabnet Peak Effective % . | . . . . . . . . . . . . . . . . . . . . . . . . . . . . . . Robots Rewired 22 | . . . . . . . . 2 . . . . . . 1 1 . . . 8 . . . . 10 . . . . Allies Hacked 1 | . . . . . . . . . . . . . . . . . . . . . . . . . 1 . . . . Hacks Repelled 2 | . . . . . . . . . . . . . . . 1 . . . . 1 . . . . . . . . . Allies | -11 -10 -10 -8 -8 -6 -6 -6 -6 -6 -6 -5 -5 -5 -5 -5 -4 -4 -4 -4 -4 -4 -4 -4 -3 -3 -3 -2 -2 -2 -------- Run | Yrd Mat Sub Rec Scr Fac Was Fac Low Low Dat Pro Fac Upp Upp War Pro Fac Was Fac Ext Cet Arc Hub Res Arm Lab Res Qua Frg Total Allies 72 | . . . . . . 19 2 2 . . . . 3 . 1 1 . 19 . 9 5 . . . 10 . . . 1 Largest Group 19 | . . . . . . 18 1 2 1 . . . 3 . 1 2 1 19 17 9 9 7 4 . 8 . . . 1 Highest-Rated Group 684 | . . . . . . 638 26 58 29 . . . 93 . 119 235 116 684 584 475 684 603 377 . 416 . . . 45 Highest-Rated Ally 159 | . . . . . . 50 26 29 29 . . . 31 . 119 119 116 50 46 159 152 146 96 . 56 . . . 45 Initial UFD Resources 118 | . . . . . 24 24 24 44 44 44 46 46 66 66 66 70 70 88 88 90 90 90 90 94 114 114 118 118 118 Total Orders 18 | . . . . . . . 1 3 2 . . . . . . 7 1 . . . . 2 1 . . . . . 1 STAY 12 | . . . . . . . 1 2 1 . . . . . . 4 1 . . . . 1 1 . . . . . 1 FOLLOW 6 | . . . . . . . . 1 1 . . . . . . 3 . . . . . 1 . . . . . . . Ally Attacks 406 | . . . . . . 71 . 5 1 . . . 16 . 1 . 3 . 122 75 33 6 32 . 41 . . . . Total Damage 11344 | . . . . . . 2744 . 59 18 . . . 213 . 34 . 116 . 2232 2140 1178 219 950 . 1441 . . . . Kills 69 | . . . . . . 8 . 3 . . . . 4 . . . . . 15 15 9 2 4 . 9 . . . . Allies Corrupted 3 | . . . . . . . . . . . . . . . . . . . 1 . . . 2 . . . . . . Allies Melted 5 | . . . . . . . . . . . . . . . . . . . 1 . . . . . . . . . 4 Intel | -11 -10 -10 -8 -8 -6 -6 -6 -6 -6 -6 -5 -5 -5 -5 -5 -4 -4 -4 -4 -4 -4 -4 -4 -3 -3 -3 -2 -2 -2 ------- Run | Yrd Mat Sub Rec Scr Fac Was Fac Low Low Dat Pro Fac Upp Upp War Pro Fac Was Fac Ext Cet Arc Hub Res Arm Lab Res Qua Frg Active Infowar (turns) 20487 | 7 663 53 . . 83 86 1818 800 1147 65 1224 1014 307 353 495 1148 528 253 607 974 284 597 279 1217 743 107 428 681 4526 Optics 17738 | . . . . . . . . 761 1147 65 1224 1014 307 353 495 1148 528 253 607 974 284 597 279 1217 743 107 428 681 4526 Sensors 13080 | . . . . . 83 86 1818 714 880 . . 654 307 353 477 1067 528 253 485 974 276 . 254 1215 741 107 351 681 776 Terrain 235 | . . . . . . . . . . . . . . 201 34 . . . . . . . . . . . . . . Structural 310 | . . . . . . . . . . . . . . . . . . . . . . . . . . . . . 310 Seismic 842 | 7 663 53 . . . . . . . . . 119 . . . . . . . . . . . . . . . . . Machine Analysis 2 | . . . . . . . . . . . . . . . 2 . . . . . . . . . . . . . . Cloaking 1158 | . . . . . . . . . . . . . . . . . . . . . . 335 93 130 . . . 3 597 Jamming 2964 | . . . . . . . . . . . . . . . . . . . 8 52 . . 159 210 659 107 400 681 688 ECM 1 | . . . . . . . . . . . . . . . . . . . . . . . . . . . . . 1 Robot Analysis Total 4 | . . . . . . . 4 . . . . . . . . . . . . . . . . . . . . . . Derelict Logs Recovered 15 | . . 2 . 3 . . . 3 . . 2 . 2 1 . 2 . . . . . . . . . . . . . Drone Launches . | . . . . . . . . . . . . . . . . . . . . . . . . . . . . . . Drone Recoveries . | . . . . . . . . . . . . . . . . . . . . . . . . . . . . . . Exploration | -11 -10 -10 -8 -8 -6 -6 -6 -6 -6 -6 -5 -5 -5 -5 -5 -4 -4 -4 -4 -4 -4 -4 -4 -3 -3 -3 -2 -2 -2 ------------- Run | Yrd Mat Sub Rec Scr Fac Was Fac Low Low Dat Pro Fac Upp Upp War Pro Fac Was Fac Ext Cet Arc Hub Res Arm Lab Res Qua Frg Turns Passed 27642 | 77 663 2958 329 3243 88 86 1853 806 1147 65 1224 1014 307 353 495 1148 528 253 607 974 284 597 279 1217 743 107 428 681 5088 Spaces Moved 27599 | 5 339 1643 184 1990 108 133 2288 1134 1629 101 1440 1241 597 598 664 1927 732 196 802 725 181 172 308 2249 947 141 622 654 3849 Core 17 | . . . . . . . . . . . . . . . . . . . 7 . . . . . . . . . 10 Treads 3662 | 1 339 1643 184 1495 . . . . . . . . . . . . . . . . . . . . . . . . . Legs 22 | 4 . . . . . . . . . . . . . . . . . . . . . . . . . . . . 18 Wheels 3201 | . . . . 495 . . . . . . . . . . . . . . . . . . . . . . . . 2706 Hover 19618 | . . . . . 108 133 2288 1134 1629 101 1440 1241 597 36 147 1927 732 196 795 725 181 172 308 2249 947 141 622 654 1115 Flight 1079 | . . . . . . . . . . . . . . 562 517 . . . . . . . . . . . . . . Fastest Speed 27 | 120 160 160 160 115 48 43 38 38 49 54 59 28 32 40 30 38 36 36 27 31 36 36 33 33 43 43 43 40 40 Average Speed 67 | 128 160 160 160 161 49 55 54 48 50 54 59 46 35 44 33 38 36 36 43 58 72 55 41 36 43 43 48 46 73 Slowest Speed 700 | 160 160 160 160 250 108 112 121 49 54 59 59 116 112 200 96 38 38 36 700 98 96 96 102 93 160 43 107 47 170 Overloaded Moves 98 | . . . . . . . . . . . . . . . . . . . 53 1 . . 20 . . . . 24 . Propulsion Burnouts . | . . . . . . . . . . . . . . . . . . . . . . . . . . . . . . Robots Hopped . | . . . . . . . . . . . . . . . . . . . . . . . . . . . . . . Potential Cave-ins 65 | . . 2 . . . . 9 2 . . . 8 . 6 . . . . . . . . . 2 . . 2 . 34 Cave-ins Triggered 3 | . . . . . . . . . . . . 1 . . . . . . . . . . . . . . . . 2 Exploration Rate (%) 65 | 3 42 95 46 88 4 73 52 98 96 80 83 37 83 83 74 97 22 92 30 77 88 93 41 78 62 94 20 65 59 Regions Visited 29 Branch Regions 19 Pre-discovered Areas 11 | . . 1 . 3 . . 1 . 2 1 2 . 1 . . . . . . . . . . . . . . . . Known Exits Taken 20 | . . . . . . . 1 1 1 1 1 1 1 1 1 1 . . 1 1 1 1 1 1 1 1 1 1 . Unknown Exits Taken 5 | 1 1 1 1 1 . . . . . . . . . . . . . . . . . . . . . . . . . Scrap Searched 34 | . . 11 . 8 . . . 3 2 . 2 . 2 4 . 2 . . . . . . . . . . . . . Spaces Dug 246 | . . 3 . . . 1 37 1 2 . 6 17 8 3 7 2 9 . 1 5 . . 6 18 7 . 4 18 91 Terrain Destroyed 2035 | . . 16 1 . 74 1 106 73 86 . 83 48 38 13 15 13 17 8 25 42 8 1 336 48 281 . 59 58 585 Melee 41 | . . . . . . 1 29 . . . 1 1 8 1 . . . . . . . . . . . . . . . Projectile 656 | . . 16 1 . 2 . 37 13 39 . 19 47 . 12 15 13 17 8 16 37 8 1 8 48 55 . 25 58 161 AOE 1338 | . . . . . 72 . 40 60 47 . 63 . 30 . . . . . 9 5 . . 328 . 226 . 34 . 424 Terrain Rammed . | . . . . . . . . . . . . . . . . . . . . . . . . . . . . . . Walls Destroyed . | . . . . . . . . . . . . . . . . . . . . . . . . . . . . . . Machines Disabled . | . . . . . . . . . . . . . . . . . . . . . . . . . . . . . . Actions | -11 -10 -10 -8 -8 -6 -6 -6 -6 -6 -6 -5 -5 -5 -5 -5 -4 -4 -4 -4 -4 -4 -4 -4 -3 -3 -3 -2 -2 -2 --------- Run | Yrd Mat Sub Rec Scr Fac Was Fac Low Low Dat Pro Fac Upp Upp War Pro Fac Was Fac Ext Cet Arc Hub Res Arm Lab Res Qua Frg Total 35078 | 62 398 1822 204 2024 134 144 2772 1342 1887 110 1734 1621 672 671 902 2314 982 348 1006 1212 312 627 437 2554 1214 183 727 992 5671 Wait 4451 | 46 16 38 5 . . 5 276 128 163 . 168 257 53 42 132 282 203 96 97 272 90 345 103 97 52 24 42 255 1164 Move 27569 | 4 338 1642 183 1989 108 132 2287 1133 1628 100 1439 1239 596 597 663 1926 732 195 801 724 180 171 307 2248 946 140 621 653 3847 Hop . | . . . . . . . . . . . . . . . . . . . . . . . . . . . . . . Pick Up 170 | . 5 10 . 17 3 1 15 5 3 . 7 8 2 . 7 17 3 1 4 2 . 3 2 19 6 3 3 3 21 Fast Attach 213 | 1 . 3 . 4 . . 21 6 4 1 7 15 3 4 12 1 9 2 6 4 . 3 . 18 5 5 10 2 67 Attach 143 | 2 . . . . 10 1 11 4 6 2 14 7 1 2 6 1 3 . 3 1 1 2 1 10 9 1 7 2 36 Detach 94 | . . . . 1 1 1 13 1 3 1 9 9 1 3 4 1 1 1 1 . 2 2 . 4 4 . 2 . 29 Swap 141 | . 2 15 4 2 1 1 18 8 2 2 1 9 . 1 5 3 3 1 7 7 . 6 4 8 6 . 3 3 19 Drop 305 | 2 3 15 . 11 2 2 24 11 8 2 7 19 3 8 12 15 8 3 6 3 1 7 1 39 11 5 9 3 65 Fire 1657 | 7 30 91 3 . 9 . 43 39 70 . 79 54 2 9 57 56 20 49 80 98 38 88 19 109 101 5 30 59 412 Melee 69 | . . . . . . 1 44 . . 2 3 2 11 5 . . . . . . . . . 1 . . . . . Ram 1 | . . . . . . . . . . . . 1 . . . . . . . . . . . . . . . . . Kick . | . . . . . . . . . . . . . . . . . . . . . . . . . . . . . . Crush 10 | . 4 . 6 . . . . . . . . . . . . . . . . . . . . . . . . . . Escape Stasis 62 | . . . . . . . 13 . . . . 1 . . . . . . . 13 . . . . 13 . . 12 10 Rewire 161 | . . . . . . . . 7 . . . . . . 4 5 . . . 88 . . . . 57 . . . . Trap 7 | . . . . . . . . . . . . . . . . 7 . . . . . . . . . . . . . Miscellaneous 25 | . . 8 3 . . . 7 . . . . . . . . . . . 1 . . . . 1 4 . . . 1 Route ------- -11/Scrapyard -10/Materials (discovered 2 exits: [*Min] / *Sub) -10/Subcaves (discovered 3 exits: [*Mat x2] / *Rec) -8/Recycling -8/Scraptown (discovered 2 exits: [*Fac x2]) -6/Factory -6/Waste -6/Factory (discovered 6 exits: *Fac x4 / *Low x2) -6/Lower Caves -6/Lower Caves (discovered 2 exits: *Fac / *Dat) -6/Data Miner -5/Proximity Caves -5/Factory (discovered 4 exits: *Fac x2 / *Upp x2) -5/Upper Caves -5/Upper Caves (discovered 2 exits: *Fac / *War) -5/Warlord -4/Proximity Caves -4/Factory (discovered 2 exits: Res / *Upp) -4/Waste -4/Factory (discovered 4 exits: Upp x2 / *Ext x2) -4/Extension (discovered 3 exits: *Res x2 / *Cet) -4/Cetus (discovered 2 exits: *Res / *Arc) -4/Archives (discovered 3 exits: *Res / *Hub x2) -4/Hub_04(d) (discovered 4 exits: *Res x4) -3/Research (discovered 6 exits: *Res x3 / *Arm / *Tes x2) -3/Armory (discovered 2 exits: *Res / *Lab) -3/Lab -2/Research (discovered 2 exits: *Qua x2) -2/Quarantine (discovered 3 exits: *Acc / *Sec / *Frg) -2/Protoforge (discovered 1 exit: *Acc) History --------- Turn | Location | Event 52 | -11/Scrapyard | Discovered new exit (range 2) 78 | -11/Scrapyard | Entered Materials 249 | -10/Materials | Discovered new exit (range 16) 300 | -10/Materials | Build established: Mutant 601 | -10/Materials | Discovered new exit (range 8) 741 | -10/Materials | Entered Subcaves 742 | -10/Subcaves | Approached by a straggling Scientist 935 | -10/Subcaves | Discovered new exit (range 5) 1132 | -10/Subcaves | Disturbed a concealed Subdweller 1141 | -10/Subcaves | Disturbed a concealed Subdweller 1142 | -10/Subcaves | Core integrity fell below 50% 1782 | -10/Subcaves | Learned location of Storage (-8) 1787 | -10/Subcaves | Discovered new exit (range 11) 1833 | -10/Subcaves | Build established: Subdweller-Mutant 2290 | -10/Subcaves | Shifting Twisted Machinery released Sub. Optics 2292 | -10/Subcaves | Discovered new exit (range 6) 2342 | -10/Subcaves | Shifting Twisted Machinery released Sub. Shrapnel Launcher 2473 | -10/Subcaves | Learned location of 1 exit from Materials 2521 | -10/Subcaves | Disturbed a concealed Subdweller 3100 | -10/Subcaves | Visited 4L-MR0's lab 3699 | -10/Subcaves | Entered Recycling 3989 | -8/Recycling | Scanned before Scraplab entrance 4013 | -8/Recycling | Entered Scraplab 4026 | -8/Recycling | Discovered new exit (range 2) 4028 | -8/Recycling | Entered Scraptown 4028 | -8/Scraptown | System corruption cleaned by C-Scrubber 4316 | -8/Scraptown | Discovered new exit (range 13) 4353 | -8/Scraptown | Scanned Subdweller tech in exchange for log data 4358 | -8/Scraptown | Learned location of Extension (-4) 4360 | -8/Scraptown | Learned location of Armory (-3) 4361 | -8/Scraptown | Learned location of Warlord (-5) 4441 | -8/Scraptown | Visited Bundlers 4516 | -8/Scraptown | Visited Supply Room 4766 | -8/Scraptown | Visited UFD Registry 4766 | -8/Scraptown | Registered with UFD as "Kinetislasher" 4788 | -8/Scraptown | Visited The Evicted 4827 | -8/Scraptown | Visited Junk Repository 4852 | -8/Scraptown | Visited TADAMA 4953 | -8/Scraptown | Visited DA-N13 Charitable Foundation 4960 | -8/Scraptown | Found DCF Scrap (29 items) 4996 | -8/Scraptown | Visited LU-1G1's Boring Crew 5019 | -8/Scraptown | Visited Abandonware Association 5035 | -8/Scraptown | Learned abandonware demo "ERRANTS.EXE" 5091 | -8/Scraptown | Delivered Scrap Shield to a Scientist 5204 | -8/Scraptown | Visited A0-MCA Data Center 5214 | -8/Scraptown | Given a C+ rating by A0-MCA 5243 | -8/Scraptown | Visited Scrap Suit Storage 5275 | -8/Scraptown | Visited Supply Room 5297 | -8/Scraptown | Visited Botcube Research 5323 | -8/Scraptown | Visited Research Penetration Think Tank 5364 | -8/Scraptown | Visited Science Testing Area 5378 | -8/Scraptown | Build established: Mutant 5390 | -8/Scraptown | Visited Chapter 10 6497 | -8/Scraptown | Guru changed UFD alias to "Bulletninja" 6626 | -8/Scraptown | Visited Cyclists 6641 | -8/Scraptown | Entered Cyclist Reading Room 7167 | -8/Scraptown | Found A0-MCA's Component Scanner 7209 | -8/Scraptown | Met Optimus 7209 | -8/Scraptown | Accepted into 0bPrime 7268 | -8/Scraptown | Discovered new exit (range 3) 7271 | -8/Scraptown | Entered Factory 7271 | -6/Factory | Evolved 8 slots: Propulsion x2, Utility x6 7359 | -6/Factory | Sucked down chute 7359 | -6/Factory | Entered Waste 7360 | -6/Waste | Met a frightened Derelict 7365 | -6/Waste | Spotted C-40 Crusher 7372 | -6/Waste | Spotted C-40 Crusher 7374 | -6/Waste | EMP discharged 7385 | -6/Waste | Spotted C-40 Crusher 7394 | -6/Waste | Spotted C-40 Crusher 7396 | -6/Waste | Spotted C-40 Crusher 7406 | -6/Waste | Met Warlord forces unprepared to attack 7416 | -6/Waste | Allies destroyed C-40 Crusher 7418 | -6/Waste | Allies destroyed C-40 Crusher 7425 | -6/Waste | Allies destroyed C-40 Crusher 7436 | -6/Waste | Allies destroyed C-40 Crusher 7439 | -6/Waste | Discovered new exit (range 16) 7443 | -6/Waste | Allies destroyed C-40 Crusher 7445 | -6/Waste | Identified exit to Factory 7445 | -6/Waste | Entered Factory 7472 | -6/Factory | Lost 4 allies 7550 | -6/Factory | Fabricated Hacking Suite? 7618 | -6/Factory | Loaded intel: 8 recycling unit locations 7620 | -6/Factory | Build established: Hacker-Mutant 7657 | -6/Factory | Identified exit to Factory 7744 | -6/Factory | Identified exit to Lower Caves 7862 | -6/Factory | Learned location of Protoforge (-2) 8187 | -6/Factory | Central database locked down 8308 | -6/Factory | System corruption reached 10% 8490 | -6/Factory | Spotted B-75 Beast 8611 | -6/Factory | Fabricated Hyp. Gauss Cannon? 8649 | -6/Factory | Fabricated Imp. Linear Gravjet? 8712 | -6/Factory | Fabricated Tri-rail Accelerator? 9195 | -6/Factory | First assault squad dispatched 9298 | -6/Factory | Entered Lower Caves 9300 | -6/Lower Caves | UFD Scientist delivered a prototype 9337 | -6/Lower Caves | Found Prototype Protection 9337 | -6/Lower Caves | Identified Enh. Scrap Shield 9455 | -6/Lower Caves | Attracted the attention of an 0b10 checkpoint 9671 | -6/Lower Caves | Attracted the attention of an 0b10 outpost 9733 | -6/Lower Caves | Destroyed 7 combat bots 9763 | -6/Lower Caves | Build established: Hacker-Scout 9885 | -6/Lower Caves | Learned location of 1 exit from Factory 9948 | -6/Lower Caves | Learned Factory terminal intel 9989 | -6/Lower Caves | Learned 4 Factory zone layouts 10052 | -6/Lower Caves | Discovered new exit (range 5) 10054 | -6/Lower Caves | Identified exit to Lower Caves 10104 | -6/Lower Caves | Entered another Lower Caves area 10104 | -6/Lower Caves | Accompanied by 1 ally 10140 | -6/Lower Caves | Discovered exit to Factory (range 9) 10165 | -6/Lower Caves | Attracted the attention of an 0b10 checkpoint 10613 | -6/Lower Caves | Attracted the attention of an 0b10 base 11011 | -6/Lower Caves | Learned Extension garrison access intel 11097 | -6/Lower Caves | Discovered new exit (range 14) 11106 | -6/Lower Caves | Identified exit to Data Miner 11251 | -6/Lower Caves | Entered Data Miner 11251 | -6/Data Miner | Discovered new exit (range 6) 11254 | -6/Data Miner | Identified exit to Proximity Caves 11260 | -6/Data Miner | Met Data Miner 11283 | -6/Data Miner | Learned location of Section 7 (-2) 11283 | -6/Data Miner | Acquired the access code to Warlord's prototype stash 11291 | -6/Data Miner | Received God Mode back door access code from Data Miner 11292 | -6/Data Miner | Build established: Hacker-Mutant 11316 | -6/Data Miner | Entered Proximity Caves 11750 | -5/Proximity Caves | Spotted B-75 Beast 12108 | -5/Proximity Caves | Found Imp. Powered Armor 12328 | -5/Proximity Caves | Discovered exit to Factory (range 4) 12434 | -5/Proximity Caves | Attracted the attention of an 0b10 base 12436 | -5/Proximity Caves | Learned location of 1 exit from Proximity Caves 12436 | -5/Proximity Caves | Learned Factory trap positions 12436 | -5/Proximity Caves | Learned Research emergency access door positions 12436 | -5/Proximity Caves | Learned Armory emergency access door positions 12442 | -5/Proximity Caves | Core integrity fell below 50% 12540 | -5/Proximity Caves | Entered Factory 12540 | -5/Factory | Evolved 2 slots: Propulsion x1, Utility x1 12541 | -5/Factory | Identified exit to Upper Caves 12542 | -5/Factory | Identified exit to Factory 12544 | -5/Factory | Loaded intel: 76 trap records 12545 | -5/Factory | Loaded intel: 26 terminal locations 12640 | -5/Factory | Repaired Tri-rail Accelerator 12881 | -5/Factory | Loaded intel: 8 recycling unit locations 13036 | -5/Factory | Repaired Imp. Powered Armor 13296 | -5/Factory | Cargo convoy interrupted 13404 | -5/Factory | Discovered exit to Factory (range 14) 13482 | -5/Factory | Central database locked down 13510 | -5/Factory | Crushed by falling debris 13511 | -5/Factory | System corruption reached 10% 13541 | -5/Factory | Lost 3 parts (2n1u) 13554 | -5/Factory | Entered Upper Caves 13557 | -5/Upper Caves | Attracted the attention of an 0b10 checkpoint 13658 | -5/Upper Caves | Encountered a Warlord checkpoint 13741 | -5/Upper Caves | Entered an active Warlord outpost 13742 | -5/Upper Caves | Learned 12 Factory zone layouts 13745 | -5/Upper Caves | A Commander dispatched an escort 13746 | -5/Upper Caves | Learned Extension trap positions 13746 | -5/Upper Caves | Learned Research emergency access door positions 13746 | -5/Upper Caves | Learned Factory terminal intel 13780 | -5/Upper Caves | Found Alien Artifact 13780 | -5/Upper Caves | Identified Core Expander 13780 | -5/Upper Caves | Installed Core Expander, added new Power slot 13793 | -5/Upper Caves | Discovered new exit (range 19) 13860 | -5/Upper Caves | Identified exit to Upper Caves 13861 | -5/Upper Caves | Entered another Upper Caves area 13861 | -5/Upper Caves | Accompanied by 2 allies 13862 | -5/Upper Caves | Commander's escort returned to base 13862 | -5/Upper Caves | Commander's escort returned to base 13927 | -5/Upper Caves | Spotted B-75 Beast 13970 | -5/Upper Caves | Discovered exit to Factory (range 5) 14132 | -5/Upper Caves | Learned Factory trap positions 14211 | -5/Upper Caves | Discovered new exit (range 3) 14212 | -5/Upper Caves | Identified exit to Warlord 14214 | -5/Upper Caves | Entered Warlord 14215 | -5/Warlord | Identified exit to Proximity Caves 14228 | -5/Warlord | Build established: Hacker-Scout 14228 | -5/Warlord | System corruption cleaned by Quarantine Array 14241 | -5/Warlord | Opened Warlord's prototype stash 14250 | -5/Warlord | Found Prototype Device 14250 | -5/Warlord | Identified Exp. Phase Shifter 14255 | -5/Warlord | Found Prototype Device 14255 | -5/Warlord | Identified Thermal Barrier 14259 | -5/Warlord | Found Prototype Reactor 14259 | -5/Warlord | Identified Vortex Chain Reactor 14325 | -5/Warlord | Learned Factory fabricator intel 14325 | -5/Warlord | Learned Factory terminal intel 14325 | -5/Warlord | Learned Armory fabricator intel 14325 | -5/Warlord | Learned Research repair station intel 14325 | -5/Warlord | Learned Armory emergency access door positions 14325 | -5/Warlord | Learned Research emergency access door positions 14343 | -5/Warlord | Visited the Vortex Lab 14343 | -5/Warlord | Found Prototype Energy Gun 14343 | -5/Warlord | Identified Vortex Rifle 14346 | -5/Warlord | Found Prototype Energy Gun 14346 | -5/Warlord | Identified Vortex Rail 14349 | -5/Warlord | Warlord's base attacked by MAIN.C 14349 | -5/Warlord | Found Vortex Rail 14356 | -5/Warlord | Found Vortex Rifle 14372 | -5/Warlord | Rebuked by Warlord 14457 | -5/Warlord | P-80 Master assimilated allied MF-C8B(i) 14550 | -5/Warlord | Warlord forces counterattacked 14649 | -5/Warlord | Spotted Executioner 14662 | -5/Warlord | P-70 Sage assimilated allied H4-3EA(g) 14679 | -5/Warlord | Rewired Executioner 14701 | -5/Warlord | Lost 8 allies 14709 | -5/Warlord | Entered Proximity Caves 14709 | -4/Proximity Caves | Accompanied by 1 ally 15009 | -4/Proximity Caves | Learned Research interactive machine intel 15446 | -4/Proximity Caves | Spotted B-86 Titan 15486 | -4/Proximity Caves | Rewired B-86 Titan 15728 | -4/Proximity Caves | Destroyed *ill take that to go 15845 | -4/Proximity Caves | Found Adv. Kinecellerator 15857 | -4/Proximity Caves | Entered Factory 15857 | -4/Factory | Accompanied by 1 ally 15857 | -4/Factory | Evolved 2 slots: Utility x2 15858 | -4/Factory | Identified exit to Research 15859 | -4/Factory | Loaded intel: 93 trap records 15860 | -4/Factory | Loaded intel: 28 terminal locations 15861 | -4/Factory | Loaded intel: 6 fabricator locations 15918 | -4/Factory | Repaired Linear Gravjet+ 16008 | -4/Factory | Repaired Tri-rail Accelerator 16102 | -4/Factory | Found Unknown Device 16102 | -4/Factory | Identified Launcher Loader 16130 | -4/Factory | Loaded intel: 8 recycling unit locations 16219 | -4/Factory | Discovered new exit (range 6) 16221 | -4/Factory | Identified exit to Upper Caves 16230 | -4/Factory | Watched by a mysterious "MATRIX" hacker 16296 | -4/Factory | Repaired Adv. Kinecellerator 16298 | -4/Factory | Fabricated Tri-rail Accelerator? 16368 | -4/Factory | Garrison activated, responded to threat 16385 | -4/Factory | Sucked down chute 16385 | -4/Factory | Entered Waste 16392 | -4/Waste | Spotted C-40 Crusher 16392 | -4/Waste | Spotted C-40 Crusher 16392 | -4/Waste | Spotted C-40 Crusher 16403 | -4/Waste | Destroyed C-40 Crusher 16408 | -4/Waste | Destroyed C-40 Crusher 16413 | -4/Waste | Spotted C-40 Crusher 16449 | -4/Waste | Destroyed C-40 Crusher 16461 | -4/Waste | Destroyed C-40 Crusher 16461 | -4/Waste | Spotted C-40 Crusher 16468 | -4/Waste | Destroyed C-40 Crusher 16480 | -4/Waste | Spotted C-40 Crusher 16491 | -4/Waste | Destroyed C-40 Crusher 16501 | -4/Waste | Warlord forces began an assault 16503 | -4/Waste | Found Prototype Processor 16503 | -4/Waste | Identified Exp. Armor Integrity Analyzer 16582 | -4/Waste | Discovered new exit (range 11) 16588 | -4/Waste | Identified exit to Factory 16638 | -4/Waste | Entered Factory 16638 | -4/Factory | Accompanied by 17 allies 16639 | -4/Factory | Loaded intel: 27 terminal locations 16652 | -4/Factory | Garrison activated, responded to threat 16750 | -4/Factory | Spotted B-86 Titan 16762 | -4/Factory | Allies destroyed B-86 Titan 16767 | -4/Factory | Loaded intel: 8 recycling unit locations 16786 | -4/Factory | Garrison activated, responded to threat 16829 | -4/Factory | Lost 6 allies 16903 | -4/Factory | Identified exit to Extension 16925 | -4/Factory | Garrison activated, responded to threat 17030 | -4/Factory | Lost 3 parts (2p1n) 17229 | -4/Factory | Fabricated Tri-rail Accelerator (x1) 17245 | -4/Factory | Entered Extension 17246 | -4/Extension | Loaded intel: 27 trap records 17318 | -4/Extension | Energy Cycler disabled 17318 | -4/Extension | Rescued a captive Derelict 17320 | -4/Extension | Rescued A7 17798 | -4/Extension | Spotted B-86 Titan 17829 | -4/Extension | Destroyed B-86 Titan 17835 | -4/Extension | Spotted B-86 Titan 17864 | -4/Extension | Allies destroyed B-86 Titan 17872 | -4/Extension | Discovered exit to Research (range 15) 17938 | -4/Extension | Incoming investigation squad redirected 18163 | -4/Extension | Discovered new exit (range 22) 18164 | -4/Extension | Discovered exit to Research (range 22) 18195 | -4/Extension | Disrupted transfer network 18216 | -4/Extension | Identified exit to Cetus 18219 | -4/Extension | Entered Cetus 18219 | -4/Cetus | Accompanied by 7 allies (A7) 18224 | -4/Cetus | Acquired a Cetus Manufacturing Module code from A7 18229 | -4/Cetus | Spotted Cetus Guard 18229 | -4/Cetus | Spotted Cetus Guard 18232 | -4/Cetus | Spotted Cetus Guard 18232 | -4/Cetus | Spotted Cetus Guard 18244 | -4/Cetus | Destroyed Cetus Guard 18251 | -4/Cetus | Allies destroyed Cetus Guard 18256 | -4/Cetus | Allies destroyed Cetus Guard 18257 | -4/Cetus | Allies destroyed Cetus Guard 18295 | -4/Cetus | Started Cetus Manufacturing Module 18307 | -4/Cetus | Escorted A7 to Cetus Mainframe 18320 | -4/Cetus | Manufactured an Enhanced Grunt 18328 | -4/Cetus | Discovered new exit (range 22) 18345 | -4/Cetus | Manufactured an Enhanced Grunt 18370 | -4/Cetus | Manufactured an Enhanced Grunt 18395 | -4/Cetus | Manufactured an Enhanced Grunt 18410 | -4/Cetus | Spotted Cetus Guard 18411 | -4/Cetus | Spotted Cetus Guard 18413 | -4/Cetus | Spotted Cetus Guard 18414 | -4/Cetus | Spotted Cetus Guard 18418 | -4/Cetus | Allies destroyed Cetus Guard 18420 | -4/Cetus | Manufactured an Enhanced Grunt 18421 | -4/Cetus | Destroyed Cetus Guard 18429 | -4/Cetus | Destroyed Cetus Guard 18430 | -4/Cetus | Allies destroyed Cetus Guard 18435 | -4/Cetus | Discovered exit to Research (range 22) 18449 | -4/Cetus | Met Revision 17 18495 | -4/Cetus | Identified exit to Archives 18503 | -4/Cetus | Entered Archives 18503 | -4/Archives | Accompanied by 7 allies (A7) 18507 | -4/Archives | Murdered A7 18519 | -4/Archives | Extracted ID and sensor layout for unrecognized location from A7's data core 18550 | -4/Archives | Discovered new exit (range 23) 18574 | -4/Archives | Discovered new exit (range 23) 18601 | -4/Archives | Discovered exit to Research (range 22) 18786 | -4/Archives | Build established: Scavenger-Mutant 19080 | -4/Archives | Identified exit to Hub_04(d) 19100 | -4/Archives | Entered Hub_04(d) 19100 | -4/Hub_04(d) | Accompanied by 4 allies 19207 | -4/Hub_04(d) | Spotted B-86 Titan 19243 | -4/Hub_04(d) | Network Hub disabled 19243 | -4/Hub_04(d) | Network Hub disabled 19251 | -4/Hub_04(d) | Spotted Lightning 19334 | -4/Hub_04(d) | Network Hub disabled 19334 | -4/Hub_04(d) | Network Hub disabled 19379 | -4/Hub_04(d) | Entered Research 19379 | -3/Research | Evolved 2 slots: Propulsion x1, Utility x1 19381 | -3/Research | Loaded intel: 42 interactive machine locations 19382 | -3/Research | Loaded intel: 3 repair station locations 19397 | -3/Research | Loaded intel: 5 recycling unit locations 19441 | -3/Research | Build established: Hacker-Scout 19475 | -3/Research | Discovered new exit (range 13) 19475 | -3/Research | Spotted B-86 Titan 19537 | -3/Research | Identified exit to Research 19579 | -3/Research | Revision forces began assault on 0b10 19665 | -3/Research | Lost 3 allies 19722 | -3/Research | Lost 5 allies 19805 | -3/Research | Fabricated Tri-rail Accelerator (x1) 19827 | -3/Research | Identified exit to Armory 19827 | -3/Research | Identified exit to Testing 19957 | -3/Research | Fabricated Adv. Powered Armor (x1) 20019 | -3/Research | Central database locked down 20079 | -3/Research | Research terminal network offline 20096 | -3/Research | Spotted B-86 Titan 20127 | -3/Research | Destroyed B-86 Titan 20195 | -3/Research | Build established: Scavenger-Scout 20227 | -3/Research | Found Prototype Device 20227 | -3/Research | Identified Exp. Focal Shield 20333 | -3/Research | Found Prototype Launcher 20333 | -3/Research | Identified Smartbomb Launcher 20596 | -3/Research | Entered Armory 20598 | -3/Armory | Loaded intel: 7 fabricator locations 21096 | -3/Armory | First assault squad dispatched 21242 | -3/Armory | Lost 7 allies 21262 | -3/Armory | Destroyed 12 combat bots 21305 | -3/Armory | High security lockdown imminent 21305 | -3/Armory | Discovered exit to Research (range 16) 21326 | -3/Armory | Discovered new exit (range 4) 21339 | -3/Armory | Identified exit to Lab 21339 | -3/Armory | Entered Lab 21339 | -3/Lab | Discovered exit to Research (range 9) 21344 | -3/Lab | Hidden lab's door opened automatically 21344 | -3/Lab | Sensor layout match revealed 21345 | -3/Lab | Gained access to the hidden lab's interior 21390 | -3/Lab | Found Alien Artifact 21394 | -3/Lab | Identified Integrated Dissipator 21394 | -3/Lab | Installed Integrated Dissipator, increased core heat dissipation (+20) 21401 | -3/Lab | Found Core Expander 21401 | -3/Lab | Installed Core Expander, added new Power slot 21410 | -3/Lab | Found Prototype Protection 21410 | -3/Lab | Identified Med. Regenerative Plating 21413 | -3/Lab | Found Prototype Energy Gun 21413 | -3/Lab | Identified Tachyon Dispersion Ray 21415 | -3/Lab | Found Prototype Energy Gun 21415 | -3/Lab | Identified Hyp. EM Gauss Rifle 21429 | -3/Lab | Unable to decrypt terminal 21442 | -3/Lab | Unable to decrypt terminal 21446 | -3/Lab | Entered Research 21446 | -2/Research | Evolved 2 slots: Propulsion x1, Utility x1 21447 | -2/Research | Identified exit to Quarantine 21456 | -2/Research | Targeted by mysterious "MATRIX" hacker 21730 | -2/Research | Found Prototype Device 21730 | -2/Research | Identified Adv. Particle Accelerator 21742 | -2/Research | Unchained authorized (CL-0N3) 21874 | -2/Research | Entered Quarantine 21916 | -2/Quarantine | Discovered new exit (range 5) 21919 | -2/Quarantine | Identified exit to Access 21958 | -2/Quarantine | Spotted Alpha 7 22051 | -2/Quarantine | Unchained authorized (CL-0N3) 22190 | -2/Quarantine | Destroyed 11 combat bots 22270 | -2/Quarantine | Found Alien Energy Cannon 22270 | -2/Quarantine | Identified Core Cannon 22306 | -2/Quarantine | Spotted Fortress 22337 | -2/Quarantine | Discovered new exit (range 6) 22337 | -2/Quarantine | Discovered new exit (range 6) 22339 | -2/Quarantine | Identified exit to Section 7 22340 | -2/Quarantine | Identified exit to Protoforge 22374 | -2/Quarantine | First assault squad dispatched 22391 | -2/Quarantine | Incoming assault squad redirected 22555 | -2/Quarantine | Entered Protoforge 22601 | -2/Protoforge | Superfortress began startup sequence 22766 | -2/Protoforge | Spotted Hotshot 22819 | -2/Protoforge | Spotted Hotshot 22871 | -2/Protoforge | Build established: Scientist-Scout 22992 | -2/Protoforge | Spotted Hotshot 23028 | -2/Protoforge | Spotted AP7-3 23029 | -2/Protoforge | Spotted AP7-3 23055 | -2/Protoforge | First assault squad dispatched 23057 | -2/Protoforge | Spotted SKR-2 23057 | -2/Protoforge | Spotted SKR-2 23057 | -2/Protoforge | Spotted SKR-2 23082 | -2/Protoforge | Spotted EXE-6 23084 | -2/Protoforge | Incoming assault squad redirected 23091 | -2/Protoforge | UFD initiated attack on Protoforge (Readiness: Maximal) 23091 | -2/Protoforge | Loaded intel: 3 recycling unit locations 23096 | -2/Protoforge | System Shield fried by hacking feedback 23105 | -2/Protoforge | Spotted EXE-6 23119 | -2/Protoforge | Found Exp. Armor Integrity Analyzer 23124 | -2/Protoforge | Found Exp. Core Analyzer 23126 | -2/Protoforge | Found Prototype Device 23126 | -2/Protoforge | Identified Exp. Kinecellerator 23128 | -2/Protoforge | Optimus greeted in Protoforge 23129 | -2/Protoforge | Found Prototype Ballistic Gun 23129 | -2/Protoforge | Identified Cep. XC Strikerail 23132 | -2/Protoforge | Found Cep. XC Strikerail 23157 | -2/Protoforge | Found Prototype Processor 23157 | -2/Protoforge | Identified Exp. Melee Analysis Suite 23168 | -2/Protoforge | Spotted EXE-6 23179 | -2/Protoforge | Spotted EXE-6 23179 | -2/Protoforge | Destroyed EXE-6 23199 | -2/Protoforge | Lost 4 allies 23225 | -2/Protoforge | Destroyed AP7-3 23238 | -2/Protoforge | Found Prototype Device 23238 | -2/Protoforge | Identified Exp. ECM Suite 23240 | -2/Protoforge | Found Cep. XC Strikerail 23245 | -2/Protoforge | Lost 3 allies 23245 | -2/Protoforge | Spotted Hotshot 23250 | -2/Protoforge | Found Prototype Processor 23250 | -2/Protoforge | Identified Exp. Target Analyzer 23254 | -2/Protoforge | Found Exp. Targeting Computer 23261 | -2/Protoforge | Found Prototype Energy Gun 23264 | -2/Protoforge | Identified Enh. Gamma Rifle 23293 | -2/Protoforge | Lost 3 allies 23305 | -2/Protoforge | Spotted Executioner 23306 | -2/Protoforge | Spotted Executioner 23309 | -2/Protoforge | Destroyed Executioner 23311 | -2/Protoforge | Spotted Executioner 23312 | -2/Protoforge | Destroyed Executioner 23321 | -2/Protoforge | Spotted Striker 23322 | -2/Protoforge | Spotted Striker 23334 | -2/Protoforge | Spotted Executioner 23334 | -2/Protoforge | Spotted Overlord 23353 | -2/Protoforge | Destroyed Executioner 23365 | -2/Protoforge | Destroyed Overlord 23378 | -2/Protoforge | Found Exp. Core Analyzer 23388 | -2/Protoforge | Lost 9 allies 23388 | -2/Protoforge | Found Exp. Targeting Computer 23394 | -2/Protoforge | Lost 3 parts (1n2u) 23406 | -2/Protoforge | Spotted Striker 23407 | -2/Protoforge | Spotted Immortal 23407 | -2/Protoforge | Spotted Executioner 23408 | -2/Protoforge | Spotted Immortal 23411 | -2/Protoforge | Destroyed Striker 23413 | -2/Protoforge | Spotted Immortal 23417 | -2/Protoforge | Destroyed Executioner 23464 | -2/Protoforge | Lost 3 allies 23560 | -2/Protoforge | UFD reported confirmed Drillbomb installation 23560 | -2/Protoforge | Found Prototype Device 23560 | -2/Protoforge | Identified Exp. System Purifier 23566 | -2/Protoforge | Found Prototype Storage 23566 | -2/Protoforge | Identified Cep. NT7 Matterbank 23596 | -2/Protoforge | Additional patrols dispatched to research labs 23597 | -2/Protoforge | Core integrity fell below 50% 23699 | -2/Protoforge | Crushed by falling debris 23700 | -2/Protoforge | System corruption reached 10% 23709 | -2/Protoforge | Spotted Executioner 23730 | -2/Protoforge | Lost 10 parts (4n6u) 23732 | -2/Protoforge | Spotted Executioner 23746 | -2/Protoforge | Found Exp. Core Analyzer 23765 | -2/Protoforge | Found Exp. Targeting Computer 23786 | -2/Protoforge | Build established: Scavenger-Mutant 23805 | -2/Protoforge | Spotted Striker 23808 | -2/Protoforge | Spotted Striker 23877 | -2/Protoforge | Lost 22 allies 23878 | -2/Protoforge | Forge Plexus network access discovered 23912 | -2/Protoforge | Found Exp. Core Analyzer 23986 | -2/Protoforge | Found Scrap Suit 24019 | -2/Protoforge | Spotted Executioner 24021 | -2/Protoforge | Spotted Striker 24038 | -2/Protoforge | Found Exp. Targeting Computer 24158 | -2/Protoforge | Fabricated Tri-rail Accelerator? 24178 | -2/Protoforge | Spotted Striker 24183 | -2/Protoforge | Spotted Executioner 24184 | -2/Protoforge | Spotted Executioner 24185 | -2/Protoforge | Spotted Striker 24194 | -2/Protoforge | Destroyed Executioner 24210 | -2/Protoforge | Found Exp. Targeting Computer 24225 | -2/Protoforge | Spotted Striker 24232 | -2/Protoforge | Spotted Executioner 24233 | -2/Protoforge | Spotted Executioner 24285 | -2/Protoforge | Lost 13 allies 24326 | -2/Protoforge | Spotted Hotshot 24331 | -2/Protoforge | Spotted Hotshot 24364 | -2/Protoforge | Spotted Striker 24367 | -2/Protoforge | Spotted Striker 24368 | -2/Protoforge | Destroyed Striker 24384 | -2/Protoforge | Spotted Executioner 24389 | -2/Protoforge | Core integrity fell below 20% 24419 | -2/Protoforge | Destroyed Executioner 24422 | -2/Protoforge | Spotted Striker 24427 | -2/Protoforge | Destroyed Striker 24431 | -2/Protoforge | Build established: Scavenger-Scrapper 24436 | -2/Protoforge | Spotted Executioner 24436 | -2/Protoforge | Spotted Executioner 24462 | -2/Protoforge | Spotted Striker 24464 | -2/Protoforge | Spotted Striker 24486 | -2/Protoforge | Spotted Striker 24487 | -2/Protoforge | Spotted Striker 24502 | -2/Protoforge | Lost 17 allies 24512 | -2/Protoforge | Spotted Executioner 24542 | -2/Protoforge | Destroyed Striker 24552 | -2/Protoforge | Lost 5 allies 24568 | -2/Protoforge | UFD reported confirmed Drillbomb installation 24628 | -2/Protoforge | Destroyed Executioner 24683 | -2/Protoforge | Spotted Executioner 24748 | -2/Protoforge | Destroyed Executioner 24754 | -2/Protoforge | Spotted Executioner 24761 | -2/Protoforge | Destroyed Executioner 24774 | -2/Protoforge | Spotted Executioner 24775 | -2/Protoforge | Destroyed Executioner 24798 | -2/Protoforge | Destroyed 7 combat bots 24800 | -2/Protoforge | Spotted Striker 24812 | -2/Protoforge | Spotted Executioner 24924 | -2/Protoforge | Found 0bPrime Scrap Suit 24957 | -2/Protoforge | Spotted Striker 24966 | -2/Protoforge | Spotted Striker 24989 | -2/Protoforge | Spotted Executioner 24992 | -2/Protoforge | Destroyed Executioner 25037 | -2/Protoforge | Lost 17 allies 25068 | -2/Protoforge | Spotted Striker 25072 | -2/Protoforge | Spotted Striker 25107 | -2/Protoforge | Spotted Striker 25109 | -2/Protoforge | Spotted Striker 25111 | -2/Protoforge | Destroyed Striker 25130 | -2/Protoforge | Lost 4 allies 25147 | -2/Protoforge | Spotted Executioner 25152 | -2/Protoforge | Spotted Executioner 25196 | -2/Protoforge | UFD reported confirmed Drillbomb installation 25228 | -2/Protoforge | Lost 7 allies 25231 | -2/Protoforge | UFD reported confirmed Drillbomb installation 25257 | -2/Protoforge | UFD reported confirmed Drillbomb installation 25267 | -2/Protoforge | Spotted Executioner 25296 | -2/Protoforge | Spotted Striker 25298 | -2/Protoforge | Spotted Striker 25309 | -2/Protoforge | UFD reported confirmed Drillbomb installation 25310 | -2/Protoforge | Spotted Executioner 25314 | -2/Protoforge | Spotted Executioner 25324 | -2/Protoforge | Destroyed Executioner 25355 | -2/Protoforge | Lost 6 allies 25415 | -2/Protoforge | Spotted Striker 25421 | -2/Protoforge | Spotted Striker 25427 | -2/Protoforge | Spotted Executioner 25428 | -2/Protoforge | P-80 Master assimilated allied 02FFS-D 25495 | -2/Protoforge | Spotted Executioner 25531 | -2/Protoforge | Lost 4 allies 25532 | -2/Protoforge | Spotted Executioner 25554 | -2/Protoforge | Spotted Striker 25564 | -2/Protoforge | Spotted Striker 25657 | -2/Protoforge | Spotted Striker 25663 | -2/Protoforge | Destroyed Striker 25667 | -2/Protoforge | Spotted Striker 25667 | -2/Protoforge | Spotted Striker 25768 | -2/Protoforge | Lost 9 allies 25836 | -2/Protoforge | Spotted Executioner 25838 | -2/Protoforge | Spotted Executioner 25862 | -2/Protoforge | Destroyed Executioner 25873 | -2/Protoforge | Spotted Striker 25908 | -2/Protoforge | Destroyed 8 combat bots 25916 | -2/Protoforge | Lost 6 allies 25933 | -2/Protoforge | UFD reported confirmed Drillbomb installation 25978 | -2/Protoforge | Spotted Immortal 25978 | -2/Protoforge | Spotted Immortal 25979 | -2/Protoforge | Spotted Executioner 25979 | -2/Protoforge | Destroyed Executioner 25979 | -2/Protoforge | Spotted Hotshot 25979 | -2/Protoforge | Spotted Executioner 25979 | -2/Protoforge | Spotted Hotshot 26048 | -2/Protoforge | Lost 10 allies 26106 | -2/Protoforge | UFD reported confirmed Drillbomb installation 26123 | -2/Protoforge | Lost 4 allies 26143 | -2/Protoforge | UFD reported confirmed Drillbomb installation 26246 | -2/Protoforge | Spotted Executioner 26256 | -2/Protoforge | Spotted Executioner 26256 | -2/Protoforge | Spotted Executioner 26289 | -2/Protoforge | Spotted Striker 26303 | -2/Protoforge | Destroyed 8 combat bots 26324 | -2/Protoforge | Lost 10 allies 26474 | -2/Protoforge | Spotted Striker 26476 | -2/Protoforge | Spotted Striker 26476 | -2/Protoforge | Spotted Striker 26537 | -2/Protoforge | Lost 9 allies 26596 | -2/Protoforge | Spotted Striker 26610 | -2/Protoforge | Spotted Executioner 26658 | -2/Protoforge | Spotted Striker 26661 | -2/Protoforge | Spotted Striker 26668 | -2/Protoforge | Destroyed Striker 26669 | -2/Protoforge | Spotted Striker 26672 | -2/Protoforge | Spotted Executioner 26680 | -2/Protoforge | Spotted Striker 26688 | -2/Protoforge | Spotted Striker 26693 | -2/Protoforge | Destroyed Striker 26721 | -2/Protoforge | Lost 5 allies 26724 | -2/Protoforge | Destroyed 10 combat bots 26803 | -2/Protoforge | Crushed by falling debris 26821 | -2/Protoforge | Lost 4 allies 27089 | -2/Protoforge | Spotted Striker 27089 | -2/Protoforge | Spotted Striker 27097 | -2/Protoforge | Spotted 02F65-K 27147 | -2/Protoforge | Lost 6 allies 27167 | -2/Protoforge | Spotted Executioner 27200 | -2/Protoforge | Spotted Striker 27247 | -2/Protoforge | Lost 12 allies 27348 | -2/Protoforge | Spotted Executioner 27363 | -2/Protoforge | Spotted Striker 27369 | -2/Protoforge | Spotted Striker 27391 | -2/Protoforge | Destroyed 9 combat bots 27447 | -2/Protoforge | Lost 16 allies 27474 | -2/Protoforge | Spotted 02F48-K 27487 | -2/Protoforge | Spotted Executioner 27490 | -2/Protoforge | Spotted Striker 27525 | -2/Protoforge | Lost 5 allies 27543 | -2/Protoforge | Spotted Executioner 27547 | -2/Protoforge | Spotted Striker 27547 | -2/Protoforge | Destroyed Executioner 27551 | -2/Protoforge | Spotted Striker 27590 | -2/Protoforge | Lost 4 allies 27637 | -2/Protoforge | Discovered exit to Access (range 23) 27641 | -2/Protoforge | Spotted Executioner 27641 | -2/Protoforge | Spotted Striker 27641 | -2/Protoforge | Spotted Executioner 27643 | -2/Protoforge | Destroyed by Executioner with Helical Railgun Last Messages --------------- payload. 27641_ G-73 Enforcer unfolds itself. 27641_ L-61 Swordsman unfolds itself. 27641_ H-88 Terminator unfolds itself. 27641_ S-43 Plague unfolds itself. 27641_ M-36 Artificer unfolds itself. 27641_ Slug penetrates Forge Negotiator. 27641_ Slug penetrates Earth. 27641_ C-45 Heavy ARC bursts open, deploying its payload. 27641_ B-74 Champion unfolds itself. 27641_ L-61 Swordsman unfolds itself. 27641_ Slug penetrates 02FOH-D. 27641_ 02FOH-D destroyed. 27641_ E-15 Imp destroyed. 27641_ S-43 Plague destroyed. 27641_ 02FOK-D destroyed. 27641_ Penetrated by Slug. 27642_ Slug penetrates 02FOJ-D. [Achievement: Collector] Map ----- +----------------------------------------------------+ | ?????????????????????????##????## "" "" # ### | | ???????###???????????????##????##""" # ### | | ???????###???????????????##????##"T """ " #?? | | ???????###???????????????########""" + ###?? | | ???????########?#?############### "" """ # ##??? | | ???????########?????????????????+ # ##??? | | ???????##????##????############## """ # ##??? | | ???????########????############## # ##??? | | ???????########????##??????????###########^^ ##??? | | ???????#??[ ###????##??????????########### ##### | | ???????#"%%*###????##???????????????????## [##### | | #?#?####%E%% #????##???????????????????## !%#### | | #?????? hE% ?????##???????????????????## !###" | | #?????? % ????##???????????????????## ###" | | #???????"Km % ???##??????????########### # # | | #?????? "[%l* ! ??###?????????########### # | | #????? "=![=%=&=??## ?????????## # # | | #????"" "* ===%[!?## ?????????##"" " # # | | #???? ! &!%*|## #????????##""" " # % | | #??? %*=[!!% ## ????######"S ; !!! | | #??? =&%[s== # #### ## #"" ; %%= | | #??? !=!=[%= # ## # # "" % ; *!% | | #????? = s ##=!# ; | | ########## # %[ ! ##%% # | | #?? ! [=!*/ %! =[% ; | | ##= =%A=!%=!=@=!!= ####### !=! | | ##??????"""" *]* %%%[[*!!!|[! # ###### [!%! = | | ##???????"""" =%==! % % ! [ ##?# # ![! !% | | ##???????"""" =%[= % # ### "##"""" * | | ##???????""" * [% A%% | | ##???" !!!%[%% % # ! # | | ##???" """""" =[=!!%%%% & [ ! #### | | ##???????"""" ![*%!!% % % [%[ *#=# ### | | ##????????"""|# ! %%= %%& !/ ### # ## | | ##????????"""! % % % % %[= ! % | | ##???????=[%=%# = !% % %%% & % % &% | | ###########%### ! ! & % % | | ###########?### * %!%% % = % % % | | ????????###?### " "" [% %] %[ *%= % | | ????????#?? = "" " *%= [ [ ! /!* | | ????????#? ! ! "" "" !=% [ *% %! | | ????????# [%! !!%!= = %=% | | ????????? !*[ %!! !%%% % | | ????????# ####"##### #; %[ % | | ????????#? ############# ! #% =% | | ##?######????##########""";# %%! = [ %= %! | | ##???????????#?????? #!%=! % %=%% / ! | | ##???????????#?????""" """ ""!*[ !![=%%* | | ##???????????#??????"" """ " %[! %*%%! | | ##??? ??????????????"" """ "" % [!!= =| | +----------------------------------------------------+ Best States ------------- Heat Dissipation 88 Energy Generation 70 Energy Capacity 700 Matter Stores 300 Matter Capacity 300 Sight Range 23 Robot Scan Range 16 Terrain Scan Range 20 Terrain Scan Density 10 Jamming Range 16 Cloak Strength 3 Armor Coverage 1700 Resistance: EM 20 Core Shielding 10 Propulsion Shielding 90 Utility Shielding 33 Weapon Shielding 90 Weapon Cycling 20 Phase Shifting 15 Evasion (%) 64 Targeting Accuracy 48 Melee Accuracy 12 Target Analysis 10 Core Analysis 12 Armor Integrity Analysis 50 Recoil Reduction 2 Kinecelleration 66 Salvage Targeting 4 Offensive Hacking 32 Defensive Hacking 21 Item Schematics ----------------- Hcp. Storage Unit | -10/Materials | Hacked Hacking Suite | -8/Recycling | Hacked Adv. Targeting Computer | -6/Factory | Hacked Imp. Linear Gravjet | -6/Factory | Scanalyzed Hyp. Gauss Cannon | -6/Factory | Hacked Tri-rail Accelerator | -6/Factory | Hacked Combat Drone Bay | -6/Data Miner | Free Lgt. Regenerative Plating | -6/Data Miner | Free Cld. Gravmag System | -6/Data Miner | Free Imp. Thermal Defense Suite | -6/Data Miner | Free Kinetic Spear | -6/Data Miner | Free Adv. Medium Treads | -6/Data Miner | Free Adv. Coolant Injector | -6/Data Miner | Free Hvy. Disruptor Cannon | -6/Data Miner | Free Hardcell Cannon | -6/Data Miner | Free Adv. Transmission Jammer | -6/Data Miner | Free Linear Accelerator | -6/Data Miner | Free Adv. System Restoration Module | -4/Factory | Scanalyzed Cmb. Gravmag System | -4/Hub_04(d) | Hacked Adv. Kinecellerator | -3/Research | Scanalyzed Adv. Powered Armor | -3/Research | Hacked Lrn. Tractor Beam | -3/Research | Extracted Robot Schematics ------------------ B-48 Gladiator | -6/Data Miner | Free L-41 Fighter | -6/Data Miner | Free S-27 Virus | -6/Data Miner | Free R-10 Processor | -6/Data Miner | Free Fabricated ------------ Hacking Suite | x1 | -6/Factory Hyp. Gauss Cannon | x2 | -6/Factory Imp. Linear Gravjet | x2 | -6/Factory Tri-rail Accelerator | x1 | -6/Factory Tri-rail Accelerator | x1 | -4/Factory Tri-rail Accelerator | x1 | -4/Factory Tri-rail Accelerator | x1 | -3/Research Adv. Powered Armor | x1 | -3/Research Tri-rail Accelerator | x1 | -2/Protoforge Repaired ---------- Tri-rail Accelerator | 15% | -5/Factory Imp. Powered Armor | 16% | -5/Factory Linear Gravjet | 10% | -4/Factory Tri-rail Accelerator | 48% | -4/Factory Adv. Kinecellerator | 20% | -4/Factory Studied --------- Imp. Gravmag System | -6/Factory | Hacked Gravmag System | -6/Factory | Hacked Linear Gravjet | -5/Factory | Hacked Antigrav System | -5/Factory | Hacked Imp. Antigrav System | -4/Factory | Hacked Lgt. Antimatter Reactor | -4/Factory | Hacked Imp. Gyrokinetic Inverter | -4/Factory | Hacked Imp. Linear Gravjet | -3/Research | Hacked Mic. Antimatter Reactor | -3/Research | Hacked Lgt. Quantum Reactor | -3/Research | Hacked Cmb. Linear Gravjet | -2/Quarantine | Hacked Lgt. Ion Engine | -2/Quarantine | Hacked Antigrav Array | -2/Protoforge | Hacked Cmb. Antigrav System | -2/Protoforge | Hacked Alien Tech Used ----------------- Core Expander Integrated Dissipator Core Cannon Achievements -------------- 404 Anti-science Crusade Anyone Home? Collector Perfect Aim Challenges ------------ None Game ------ Seed ChargeImprovedAutocannon Manual? 0 Play Time 07:40:59 Cumulative 660.7 hours Start 2026.08.27 @ 02:04:24 End 2026.08.30 @ 03:06:57 Sessions 11 Manual Loads 0 Difficulty Rogue Special Mode None Game No. 582 Rogue 546 Adventurer 36 Explorer 0 Win Type - Total 8 Types 2/2/0/1/1/0/0/2/0/0 Lore% 85 Gallery% 75 Achievement% 69 Wizard Run 0 Options --------- Layout 2 ASCII 0 Keyboard 0 Movement Numpad Keybinds 0 Fullscreen 1 Font 48/Smallcaps Map View 50x44 Zoom Use 0% Tactical HUD 1 Map Filters NONE Filters NONE Steam 1 RUN: 232522ee-1423-4157-91a0-4d196cf23ac9